Workbook

Sheet Description (hidden)
A1: Romain Leyh
A2: 3742232000
A4: Het model berekend de kosten van zuivering voor verschillende zuivering apparaten.
A5: Het model is gebaseerd op de WaterStroommodel output en een paar extra input
A7: Keuze voor programmen:
A8: Voor de zuivering alleen wordt de goedkoopste optie gehouden
A9: De kosten van onderhoud zijn op stroombasis berekend
A10: Het is mogelijk de wer te versenellen met een instelling stap afhangelijk van de telers gegevens
A12: Notulen
A13: The description of the pollution must be based on comprehensible criteria for the cultivator
A21: Legenda
B22: info teler | F22: voorwerk van WUR e/o KWR
B23: info uit Waterstromen | F23: berekende kosten
B24: info van toeleveranciers | F24: output voor teler
A28: TO DO 21/7
B30: Tables of inputs for the ontsmetters
B31: Table of price for installation extention
B32: Macro determination of the installation cost for an extended installation
B33: Macro determination best quipment for a combined use
B34: (Macro of the desinfection solution alone)
A36: TO DO 28/8
B37: Userform et Macro
B38: Tables des flux
B39: Table des couts
B40: Macro for the container calculation
B41: Fil the new inputs
B42: User guide to fill new companies
B43: Test
A45: User guide to fill new companies
B46: Create a new input space for the company following the example
B47: Create a new space in the outputs and calculation tables , copy the formules from the last column of the output table, copy the formules forn the column z for the calacuation table
B48: Check each formules on the first column of the box
B49: Copy the formule from the first column to the rest of the box
B50: Change the range in the macro where there is a comment containing a ***
B51: Test
A53: Test
B54: Surface
B55: Drain and Riool Buffer
B56: With and without extra buffer
B57: with existing installation from a comapny

Sheet Calculator
B3: 1. Inputs
B4: Systeem Inputs
B5: Oppervlak | C5: ha | D5: 1
B6: Rioolbuffer | C6: m3 | D6: 25
B7: Rioolaansluiting | C7: m3/u/ha | D7: 0.5
B8: Drainbuffer | C8: m3 | D8: 50
B9: Financiele inputs
B10: Kosten elektriciteit | C10: €/kWh | D10: 0.07
B11: afschrijvingtermijn | C11: Jaren | D11: 10
B12: leenrente | C12: % €/€ | D12: 7
B16: 2. Apparaten Beschrijving
B17: voorfilters
B18: Optimum | C18: m3/uur/ha
B19: filters maat | C19: µm
B20: Spoelfrequency | C20: keren/uur
B21: Spoeldebiet | C21: m3/uur
B22: Prijs | C22: €
B24: Ontsmetting apparaat | E24: Agrozone | J24: 0 | K24: Enthoven Techniek | Q24: 0 | R24: HortiMaX | Y24: 0 | Z24: WaterIQ | AG24: 0 | AH24: Priva | AL24: 0 | AM24: WaterQ | AR24: 0
B25: Techniek | E25: ozon | K25: H2O2+UV | R25: H2O2+UV | Z25: H2O2+ozon+katalysator | AH25: H2O2 + UV | AM25: H2O2 + UV
B26: Footprint installatie | D26: m2 | E26: 1.2 | F26: 1.8 | G26: 2.8 | H26: 3.2 | I26: 4 | J26: 5.5
B27: Capaciteit | D27: m3/uur | E27: 2.8 | F27: 4.8 | G27: 12 | H27: 16 | I27: 24 | J27: 40 | K27: 2.2 | L27: 3 | M27: 4.5 | N27: 6 | O27: 8.9 | P27: 11.9 | Q27: 14.9 | R27: n.v.t. | S27: n.v.t. | T27: n.v.t. | U27: n.v.t. | V27: n.v.t. | W27: n.v.t. | X27: n.v.t. | Y27: n.v.t. | Z27: 1.5 | AA27: 2.5 | AB27: 4.5 | AC27: 7 | AD27: 15 | AE27: 25 | AF27: 50 | AG27: 75 | AM27: n.v.t. | AN27: n.v.t. | AO27: n.v.t. | AP27: n.v.t. | AQ27: n.v.t. | AR27: n.v.t.
B28: Prijs (investering) | D28: € | E28: 29870 | F28: 36330 | G28: 74964 | H28: 83009 | I28: 98079 | J28: 120439 | K28: 20900 | L28: 25500 | M28: 31750 | N28: 36750 | O28: 44250 | P28: 51750 | Q28: 59250 | Z28: 19950 | AA28: 24950 | AB28: 50500 | AC28: 68500 | AD28: 79500 | AE28: 99950 | AF28: 179500 | AG28: 259950
B29: Prijs (investering) | D29: k€ | E29: =E28/1000 -> 29.87 | F29: 36.33 | G29: 74.964 | H29: 83.009 | I29: 98.079 | J29: 120.439 | K29: 20.9 | L29: 25.5 | M29: 31.75 | N29: 36.75 | O29: 44.25 | P29: 51.75 | Q29: 59.25 | Z29: =Z28/1000 -> 19.95 | AA29: 24.95 | AB29: 50.5 | AC29: 68.5 | AD29: 79.5 | AE29: 99.95 | AF29: 179.5 | AG29: 259.95
B30: Elektriciteit | D30: kW.h/m3 | E30: 0.63 | F30: 0.5 | G30: 0.47 | H30: 0.47 | I30: 0.37 | J30: 0.35 | K30: 1.4 | L30: 1.3 | M30: 1 | N30: 1 | O30: 0.9 | P30: 0.8 | Q30: 0.7 | Z30: 0.44 | AA30: 0.33 | AB30: 0.22 | AC30: 0.18 | AD30: 0.16 | AE30: 0.15 | AF30: 0.15 | AG30: 0.14 | AH30: 3.6 | AI30: 10.2 | AJ30: 2.9 | AK30: 2.7 | AL30: 2.6
B31: Gebruikskosten (H2O2, zuur, etc.) | D31: €/m3 | E31: 0 | F31: 0 | G31: 0 | H31: 0 | I31: 0 | J31: 0 | K31: 0.06 | L31: 0.06 | M31: 0.06 | N31: 0.06 | O31: 0.06 | P31: 0.06 | Q31: 0.06 | Z31: 0.03 | AA31: 0.03 | AB31: 0.03 | AC31: 0.03 | AD31: 0.03 | AE31: 0.03 | AF31: 0.03 | AG31: 0.03 | AH31: 0.4 | AI31: 0.18 | AJ31: 0.4 | AK31: 0.4 | AL31: 0.4
B32: Onderhoud | D32: €/jaar | E32: 1500 | F32: 1500 | G32: 2400 | H32: 2800 | I32: 3250 | J32: 4320 | K32: 1190 | L32: 1317 | M32: 1479 | N32: 1602 | O32: 1988 | P32: 2317 | Q32: 2577 | Z32: 1000 | AA32: 1200 | AB32: 1375 | AC32: 1375 | AD32: 1175 | AE32: 1172 | AF32: 3500 | AG32: 5250 | AH32: 32.7 | AI32: 47.96 | AJ32: 26.16 | AK32: 23.98 | AL32: 21.8
B33: nodige buffer | D33: m3
B34: buffer prijs | D34: €
B35: Recirculatie voldoende
B36: Combinatie voldoende
B37: TOC | D37: mg/l
B38: Redox | D38: mV/l
B39: licht remmer | D39: % AR
B40: bio | D40: nm
B48: Zuivering apparaat | E48: Agrozone | K48: Enthoven Techniek | R48: HortiMaX | Z48: WaterIQ | AH48: Priva | AM48: WaterQ
B49: Techniek | E49: ozon | K49: H2O2+UV | R49: H2O2+UV | Z49: H2O2+ozon+katalysator | AH49: H2O2 + UV | AM49: H2O2 + UV
B50: Footprint installatie | D50: m2 | E50: 1.2 | F50: 1.8 | G50: 2.8 | H50: 3.2 | I50: 4 | J50: 5.5 | K50: 3.84 | L50: 3.84 | M50: 3.84 | N50: 3.84 | O50: 4.08 | P50: 6.08 | Q50: 6.08 | R50: 1.44 | S50: 1.44 | T50: 1.44 | U50: 1.44 | V50: 1.44 | W50: 2.16 | X50: 2.16 | Y50: 2.16 | Z50: 1.7 | AA50: 2.5 | AB50: 3.6 | AC50: 4.3 | AD50: 6.1 | AE50: 8.9 | AF50: 13.2 | AG50: 21.6 | AH50: 3.25 | AI50: 3.28 | AJ50: 3.25 | AK50: 4.06 | AL50: 4.06 | AM50: 2.25 | AN50: 2.25 | AO50: 2.25 | AP50: 2.25 | AQ50: 3.15 | AR50: 3.15
B51: Capaciteit | D51: m3/uur | E51: 0.7 | F51: 1.2 | G51: 3 | H51: 4 | I51: 6 | J51: 10 | K51: 0.53 | L51: 0.7 | M51: 1.05 | N51: 1.4 | O51: 2.1 | P51: 2.8 | Q51: 3.5 | R51: 0.4 | S51: 0.8 | T51: 1.2 | U51: 1.6 | V51: 2.4 | W51: 3.2 | X51: 4.8 | Y51: 6.4 | Z51: 0.48 | AA51: 0.6 | AB51: 1.5 | AC51: 2.5 | AD51: 5 | AE51: 10 | AF51: 20 | AG51: 30 | AH51: 0.75 | AI51: 1.25 | AJ51: 1.5 | AK51: 2.25 | AL51: 3 | AM51: 0.75 | AN51: 1.5 | AO51: 2.25 | AP51: 3 | AQ51: 3.75 | AR51: 4.5
B52: Prijs (investering) | D52: € | E52: 25995 | F52: 32455 | G52: 71089 | H52: 79134 | I52: 94204 | J52: 116564 | K52: 17900 | L52: 22500 | M52: 28750 | N52: 33750 | O52: 41250 | P52: 48750 | Q52: 56250 | R52: 14250 | S52: 18500 | T52: 22750 | U52: 27000 | V52: 35500 | W52: 44000 | X52: 61000 | Y52: 78000 | Z52: 19500 | AA52: 24500 | AB52: 49500 | AC52: 67500 | AD52: 78500 | AE52: 99000 | AF52: 179000 | AG52: 259000 | AH52: 17000 | AI52: - | AJ52: 22500 | AK52: 26000 | AL52: 29500 | AM52: 19725 | AN52: 22725 | AO52: 26725 | AP52: 29725 | AQ52: 33725 | AR52: 36725
B53: Prijs (uitbreiden) | D53: € | E53: n.v.t. | F53: n.v.t. | G53: n.v.t. | H53: n.v.t. | I53: n.v.t. | J53: n.v.t. | K53: n.v.t. | L53: n.v.t. | M53: n.v.t. | N53: n.v.t. | O53: n.v.t. | P53: n.v.t. | Q53: n.v.t. | R53: n.v.t. | S53: n.v.t. | T53: n.v.t. | U53: n.v.t. | V53: n.v.t. | W53: n.v.t. | X53: n.v.t. | Y53: n.v.t. | Z53: 6550 | AA53: 7550 | AB53: n.v.t. | AC53: n.v.t. | AD53: n.v.t. | AE53: n.v.t. | AF53: n.v.t. | AG53: n.v.t. | AH53: 9800 | AI53: 9800 | AJ53: 9800 | AK53: 9800 | AL53: 9800
B54: Prijs (investering) | D54: k€ | E54: =E52/1000 -> 25.995 | F54: 32.455 | G54: 71.089 | H54: 79.134 | I54: 94.204 | J54: 116.564 | K54: 17.9 | L54: 22.5 | M54: 28.75 | N54: 33.75 | O54: 41.25 | P54: 48.75 | Q54: 56.25 | R54: 14.25 | S54: 18.5 | T54: 22.75 | U54: 27 | V54: 35.5 | W54: 44 | X54: 61 | Y54: 78 | Z54: 19.5 | AA54: 24.5 | AB54: 49.5 | AC54: 67.5 | AD54: 78.5 | AE54: 99 | AF54: 179 | AG54: 259 | AH54: 17 | AI54: - | AJ54: 22.5 | AK54: 26 | AL54: 29.5 | AM54: 19.725 | AN54: 22.725 | AO54: 26.725 | AP54: 29.725 | AQ54: 33.725 | AR54: 36.725
B55: Elektriciteit | D55: kW.h/m3 | E55: 2.53 | F55: 2 | G55: 1.88 | H55: 1.87 | I55: 1.49 | J55: 1.41 | K55: 2.8 | L55: 2.7 | M55: 2.6 | N55: 2.6 | O55: 2.5 | P55: 2.4 | Q55: 2.4 | R55: 3.1 | S55: 3.1 | T55: 3.1 | U55: 3.1 | V55: 3.1 | W55: 3.1 | X55: 3.1 | Y55: 3.1 | Z55: 0.7 | AA55: 0.6 | AB55: 0.5 | AC55: 0.26 | AD55: 0.22 | AE55: 0.15 | AF55: 0.15 | AG55: 0.15 | AH55: 3.6 | AI55: 10.2 | AJ55: 2.9 | AK55: 2.7 | AL55: 2.6 | AM55: 1.5 | AN55: 1.4 | AO55: 1.3 | AP55: 1.4 | AQ55: 1.3 | AR55: 1.4
B56: Gebruikskosten (H2O2, zuur, etc.) | D56: €/m3 | E56: 0 | F56: 0 | G56: 0 | H56: 0 | I56: 0 | J56: 0 | K56: 0.06 | L56: 0.06 | M56: 0.06 | N56: 0.06 | O56: 0.06 | P56: 0.06 | Q56: 0.06 | R56: 0.29 | S56: 0.29 | T56: 0.29 | U56: 0.29 | V56: 0.29 | W56: 0.29 | X56: 0.29 | Y56: 0.29 | Z56: 0.84 | AA56: 0.84 | AB56: 0.84 | AC56: 0.84 | AD56: 0.84 | AE56: 0.84 | AF56: 0.84 | AG56: 0.84 | AH56: 0.4 | AI56: 0.18 | AJ56: 0.4 | AK56: 0.4 | AL56: 0.4 | AM56: 0.13 | AN56: 0.13 | AO56: 0.13 | AP56: 0.13 | AQ56: 0.13 | AR56: 0.13
B57: Onderhoud | D57: €/jaar | E57: 1050 | F57: 1150 | G57: 2400 | H57: 2800 | I57: 3250 | J57: 4300 | K57: 1190 | L57: 1317 | M57: 1479 | N57: 1602 | O57: 1988 | P57: 2317 | Q57: 2577 | R57: 200 | S57: 200 | T57: 200 | U57: 200 | V57: 250 | W57: 250 | X57: 250 | Y57: 300 | Z57: 1000 | AA57: 1200 | AB57: 1375 | AC57: 1375 | AD57: 1750 | AE57: 1750 | AF57: 3500 | AG57: 5250 | AH57: =E71*0.15 -> 36.45 | AI57: =$E$71*0.22 -> 53.46 | AJ57: =E71*0.12 -> 29.16 | AK57: =E71*0.11 -> 26.73 | AL57: =E71*0.1 -> 24.3 | AM57: 1308 | AN57: 1760 | AO57: 2210 | AP57: 2662 | AQ57: 3112 | AR57: 3563
B58: Zuivering buffer | D58: m3 | E58: 25 | F58: 0 | G58: 0 | H58: 0 | I58: 0 | J58: 0 | K58: 25 | L58: 25 | M58: 0 | N58: 0 | O58: 0 | P58: 0 | Q58: 0 | R58: 25 | S58: 25 | T58: 0 | U58: 0 | V58: 0 | W58: 0 | X58: 0 | Y58: 0 | Z58: 25 | AA58: 25 | AB58: 0 | AC58: 0 | AD58: 0 | AE58: 0 | AF58: 0 | AG58: 0 | AH58: 25 | AI58: 0 | AJ58: 0 | AK58: 0 | AL58: 0 | AM58: 25 | AN58: 0 | AO58: 0 | AP58: 0 | AQ58: 0 | AR58: 0
B59: Zuivering buffer | D59: € | E59: 3400 | F59: 0 | G59: 0 | H59: 0 | I59: 0 | J59: 0 | K59: 3400 | L59: 3400 | M59: 0 | N59: 0 | O59: 0 | P59: 0 | Q59: 0 | R59: 3400 | S59: 3400 | T59: 0 | U59: 0 | V59: 0 | W59: 0 | X59: 0 | Y59: 0 | Z59: 3400 | AA59: 3400 | AB59: 0 | AC59: 0 | AD59: 0 | AE59: 0 | AF59: 0 | AG59: 0 | AH59: 3400 | AI59: 0 | AJ59: 0 | AK59: 0 | AL59: 0 | AM59: 3400 | AN59: 0 | AO59: 0 | AP59: 0 | AQ59: 0 | AR59: 0
B60: Rioolbuffer | D60: m3 | E60: 0 | F60: 0 | G60: 0 | H60: 0 | I60: 0 | J60: 0 | K60: 0 | L60: 0 | M60: 0 | N60: 0 | O60: 0 | P60: 0 | Q60: 0 | R60: 0 | S60: 0 | T60: 0 | U60: 0 | V60: 0 | W60: 0 | X60: 0 | Y60: 0 | Z60: 0 | AA60: 0 | AB60: 0 | AC60: 0 | AD60: 0 | AE60: 0 | AF60: 0 | AG60: 0 | AH60: 0 | AI60: 0 | AJ60: 0 | AK60: 0 | AL60: 0 | AM60: 0 | AN60: 0 | AO60: 0 | AP60: 0 | AQ60: 0 | AR60: 0
B61: Rioolbuffer | D61: € | E61: 0 | F61: 0 | G61: 0 | H61: 0 | I61: 0 | J61: 0 | K61: 0 | L61: 0 | M61: 0 | N61: 0 | O61: 0 | P61: 0 | Q61: 0 | R61: 0 | S61: 0 | T61: 0 | U61: 0 | V61: 0 | W61: 0 | X61: 0 | Y61: 0 | Z61: 0 | AA61: 0 | AB61: 0 | AC61: 0 | AD61: 0 | AE61: 0 | AF61: 0 | AG61: 0 | AH61: 0 | AI61: 0 | AJ61: 0 | AK61: 0 | AL61: 0 | AM61: 0 | AN61: 0 | AO61: 0 | AP61: 0 | AQ61: 0 | AR61: 0
B63: Buffers
B64: Volume | D64: m3 | E64: 10 | F64: 25 | G64: 51 | H64: 73 | I64: 113
B65: Prijs | D65: € | E65: 1453.5 | F65: 3400 | G65: 4679 | H65: 5442 | I65: 8880
B67: 3. Resultaat
B68: stromen
B69: Piek Zuivering behandeling | D69: m3/uur | E69: =AI104*Oppervlak -> 25
B70: Volume hergebruik | D70: m3 | E70: =C105*Oppervlak -> 2433
B71: Volume lozing | D71: m3 | E71: =$M$105*Oppervlak -> 243
B72: beste oplossing per bedrijf
B73: leverancier | E73: Waterson | G73: Agrozone | I73: Enthoven Techniek | K73: HortiMaX | M73: WaterIQ | O73: Priva | Q73: WaterQ
B74: techniek | E74: H2O2 + UV | G74: Ozone | I74: H2O2 + UV | K74: H2O2 + UV | M74: H2O2+ozon+ katalysator | O74: H2O2 + UV | Q74: H2O2 + UV
B75: Zuivering capaciteit | D75: m3/uur | E75: Maatwerk nodig | G75: =IF(G$86<=0,"Maatwerk nodig",IF(F88=1,"n.v.t.",HLOOKUP(G$86,$E$89:$AR$99,ROW($A2),FALSE))) -> Maatwerk nodig | I75: =IF(I$86<=0,"Maatwerk nodig",IF(H88=1,"n.v.t.",HLOOKUP(I$86,$E$89:$AR$99,ROW($A2),FALSE))) -> Maatwerk nodig | K75: =IF(K$86<=0,"Maatwerk nodig",IF(J88=1,"n.v.t.",HLOOKUP(K$86,$E$89:$AR$99,ROW($A2),FALSE))) -> Maatwerk nodig | M75: =IF(M$86<=0,"Maatwerk nodig",IF(L88=1,"n.v.t.",HLOOKUP(M$86,$E$89:$AR$99,ROW($A2),FALSE))) -> 30 | O75: =IF(O$86<=0,"Maatwerk nodig",IF(N88=1,"n.v.t.",HLOOKUP(O$86,$E$89:$AR$99,ROW($A2),FALSE))) -> Maatwerk nodig | Q75: =IF(Q$86<=0,"Maatwerk nodig",IF(P88=1,"n.v.t.",HLOOKUP(Q$86,$E$89:$AR$99,ROW($A2),FALSE))) -> Maatwerk nodig
B76: Ontsmetting capaciteit | D76: m3/uur | G76: =IF(G$86<=0,"",IF(F89=2,"n.v.t.",HLOOKUP(G$86,$E$89:$AR$99,ROW($A3),FALSE))) ->  | I76: =IF(I$86<=0,"",IF(H89=2,"n.v.t.",HLOOKUP(I$86,$E$89:$AR$99,ROW($A3),FALSE))) ->  | K76: =IF(K$86<=0,"",IF(J89=2,"n.v.t.",HLOOKUP(K$86,$E$89:$AR$99,ROW($A3),FALSE))) ->  | M76: =IF(M$86<=0,"",IF(L89=2,"n.v.t.",HLOOKUP(M$86,$E$89:$AR$99,ROW($A3),FALSE))) -> n.v.t. | O76: =IF(O$86<=0,"",IF(N89=2,"n.v.t.",HLOOKUP(O$86,$E$89:$AR$99,ROW($A3),FALSE))) ->  | Q76: =IF(Q$86<=0,"",IF(P89=2,"n.v.t.",HLOOKUP(Q$86,$E$89:$AR$99,ROW($A3),FALSE))) -> 
B77: Nodige zuivering buffer | D77: m3 | E77: bij deze | G77: =IF(G$86<=0,"bij deze",IF($F$88=1,"n.v.t.",HLOOKUP(G$86,$E$89:$AR$99,ROW($A4),FALSE))) -> bij deze | I77: =IF(I$86<=0,"bij deze",IF($F$88=1,"n.v.t.",HLOOKUP(I$86,$E$89:$AR$99,ROW($A4),FALSE))) -> bij deze | K77: =IF(K$86<=0,"bij deze",IF($F$88=1,"n.v.t.",HLOOKUP(K$86,$E$89:$AR$99,ROW($A4),FALSE))) -> bij deze | M77: =IF(M$86<=0,"bij deze",IF($F$88=1,"n.v.t.",HLOOKUP(M$86,$E$89:$AR$99,ROW($A4),FALSE))) -> 0 | O77: =IF(O$86<=0,"bij deze",IF($F$88=1,"n.v.t.",HLOOKUP(O$86,$E$89:$AR$99,ROW($A4),FALSE))) -> bij deze | Q77: =IF(Q$86<=0,"bij deze",IF($F$88=1,"n.v.t.",HLOOKUP(Q$86,$E$89:$AR$99,ROW($A4),FALSE))) -> bij deze
B78: Nodige ontsmetting buffer | D78: m3 | G78: =IF(G$86<=0,"",IF($F$88=2,"n.v.t.",HLOOKUP(G$86,$E$89:$AR$99,ROW($A5),FALSE))) ->  | I78: =IF(I$86<=0,"",IF($F$88=2,"n.v.t.",HLOOKUP(I$86,$E$89:$AR$99,ROW($A5),FALSE))) ->  | K78: =IF(K$86<=0,"",IF($F$88=2,"n.v.t.",HLOOKUP(K$86,$E$89:$AR$99,ROW($A5),FALSE))) ->  | M78: =IF(M$86<=0,"",IF($F$88=2,"n.v.t.",HLOOKUP(M$86,$E$89:$AR$99,ROW($A5),FALSE))) -> n.v.t. | O78: =IF(O$86<=0,"",IF($F$88=2,"n.v.t.",HLOOKUP(O$86,$E$89:$AR$99,ROW($A5),FALSE))) ->  | Q78: =IF(Q$86<=0,"",IF($F$88=2,"n.v.t.",HLOOKUP(Q$86,$E$89:$AR$99,ROW($A5),FALSE))) -> 
B79: Eenmalige prijs te betalen | D79: k€ | E79: leverancier | G79: =IF(G$86<=0,"leverancier",HLOOKUP(G$86,$E$89:$AR$99,ROW($A6),FALSE)/1000) -> leverancier | I79: =IF(I$86<=0,"leverancier",HLOOKUP(I$86,$E$89:$AR$99,ROW($A6),FALSE)/1000) -> leverancier | K79: =IF(K$86<=0,"leverancier",HLOOKUP(K$86,$E$89:$AR$99,ROW($A6),FALSE)/1000) -> leverancier | M79: =IF(M$86<=0,"leverancier",HLOOKUP(M$86,$E$89:$AR$99,ROW($A6),FALSE)/1000) -> 259 | O79: =IF(O$86<=0,"leverancier",HLOOKUP(O$86,$E$89:$AR$99,ROW($A6),FALSE)/1000) -> leverancier | Q79: =IF(Q$86<=0,"leverancier",HLOOKUP(Q$86,$E$89:$AR$99,ROW($A6),FALSE)/1000) -> leverancier
B80: jaarlijkse kosten
B81: Afschrijving | D81: € | G81: =IF(G$86<=0,"",HLOOKUP(G$86,$E$89:$AR$99,ROW($A7),FALSE)) ->  | I81: =IF(I$86<=0,"",HLOOKUP(I$86,$E$89:$AR$99,ROW($A7),FALSE)) ->  | K81: =IF(K$86<=0,"",HLOOKUP(K$86,$E$89:$AR$99,ROW($A7),FALSE)) ->  | M81: =IF(M$86<=0,"",HLOOKUP(M$86,$E$89:$AR$99,ROW($A7),FALSE)) -> 25900 | O81: =IF(O$86<=0,"",HLOOKUP(O$86,$E$89:$AR$99,ROW($A7),FALSE)) ->  | Q81: =IF(Q$86<=0,"",HLOOKUP(Q$86,$E$89:$AR$99,ROW($A7),FALSE)) -> 
B82: Rente | D82: € | G82: =IF(G$86<=0,"",HLOOKUP(G$86,$E$89:$AR$99,ROW($A8),FALSE)) ->  | I82: =IF(I$86<=0,"",HLOOKUP(I$86,$E$89:$AR$99,ROW($A8),FALSE)) ->  | K82: =IF(K$86<=0,"",HLOOKUP(K$86,$E$89:$AR$99,ROW($A8),FALSE)) ->  | M82: =IF(M$86<=0,"",HLOOKUP(M$86,$E$89:$AR$99,ROW($A8),FALSE)) -> 1813 | O82: =IF(O$86<=0,"",HLOOKUP(O$86,$E$89:$AR$99,ROW($A8),FALSE)) ->  | Q82: =IF(Q$86<=0,"",HLOOKUP(Q$86,$E$89:$AR$99,ROW($A8),FALSE)) -> 
B83: Elektriciteit | D83: € | G83: =IF(G$86<=0,"",HLOOKUP(G$86,$E$89:$AR$99,ROW($A9),FALSE)) ->  | I83: =IF(I$86<=0,"",HLOOKUP(I$86,$E$89:$AR$99,ROW($A9),FALSE)) ->  | K83: =IF(K$86<=0,"",HLOOKUP(K$86,$E$89:$AR$99,ROW($A9),FALSE)) ->  | M83: =IF(M$86<=0,"",HLOOKUP(M$86,$E$89:$AR$99,ROW($A9),FALSE)) -> 2.5515 | O83: =IF(O$86<=0,"",HLOOKUP(O$86,$E$89:$AR$99,ROW($A9),FALSE)) ->  | Q83: =IF(Q$86<=0,"",HLOOKUP(Q$86,$E$89:$AR$99,ROW($A9),FALSE)) -> 
B84: Producten | D84: € | G84: =IF(G$86<=0,"",HLOOKUP(G$86,$E$89:$AR$99,ROW($A10),FALSE)) ->  | I84: =IF(I$86<=0,"",HLOOKUP(I$86,$E$89:$AR$99,ROW($A10),FALSE)) ->  | K84: =IF(K$86<=0,"",HLOOKUP(K$86,$E$89:$AR$99,ROW($A10),FALSE)) ->  | M84: =IF(M$86<=0,"",HLOOKUP(M$86,$E$89:$AR$99,ROW($A10),FALSE)) -> 204.12 | O84: =IF(O$86<=0,"",HLOOKUP(O$86,$E$89:$AR$99,ROW($A10),FALSE)) ->  | Q84: =IF(Q$86<=0,"",HLOOKUP(Q$86,$E$89:$AR$99,ROW($A10),FALSE)) -> 
B85: Onderhoud | D85: € | G85: =IF(G$86<=0,"",HLOOKUP(G$86,$E$89:$AR$99,ROW($A11),FALSE)) ->  | I85: =IF(I$86<=0,"",HLOOKUP(I$86,$E$89:$AR$99,ROW($A11),FALSE)) ->  | K85: =IF(K$86<=0,"",HLOOKUP(K$86,$E$89:$AR$99,ROW($A11),FALSE)) ->  | M85: =IF(M$86<=0,"",HLOOKUP(M$86,$E$89:$AR$99,ROW($A11),FALSE)) -> 5250 | O85: =IF(O$86<=0,"",HLOOKUP(O$86,$E$89:$AR$99,ROW($A11),FALSE)) ->  | Q85: =IF(Q$86<=0,"",HLOOKUP(Q$86,$E$89:$AR$99,ROW($A11),FALSE)) -> 
B86: Totaal per jaar | D86: € | G86: =MIN(E89:J89) -> 0 | I86: =MIN(K89:Q89) -> 0 | K86: =MIN(R89:Y89) -> 0 | M86: =MIN(Z89:AG89) -> 33169.6715 | O86: =MIN(AH89:AL89) -> 0 | Q86: =MIN(AM89:AR89) -> 0
B88: Belows this line, the row are hiden for the user | E88: 0 | F88: 2
B89: Totaal | D89: €/jaar | E89: =IF($F$88=1,IF(OR(AND($E$88=0,E33<>0),E35="ERROR"),"-",SUM(E95:E99)),IF($F$88=2,IF(OR(AND($E$88=1,OR(E59="geen oplossing gevonden",E61="geen oplossing gevonden")),AND($E$88=0,E51/$D$5<$AI$104)),"-",SUM(E95:E99)),IF($F$88=3,IF(OR(AND($E$88=1,OR(E59="geen oplossing gevonden",E61="geen oplossing gevonden",E34="geen oplossing gevonden")),AND($E$88=0,OR(E51/$D$5<$AI$104,E33<>0)),E35="ERROR",E36="ERROR"),"-",SUM(E95:E99)),"ERROR"))) -> - | F89: =IF($F$88=1,IF(OR(AND($E$88=0,F33<>0),F35="ERROR"),"-",SUM(F95:F99)),IF($F$88=2,IF(OR(AND($E$88=1,OR(F59="geen oplossing gevonden",F61="geen oplossing gevonden")),AND($E$88=0,F51/$D$5<$AI$104)),"-",SUM(F95:F99)),IF($F$88=3,IF(OR(AND($E$88=1,OR(F59="geen oplossing gevonden",F61="geen oplossing gevonden",F34="geen oplossing gevonden")),AND($E$88=0,OR(F51/$D$5<$AI$104,F33<>0)),F35="ERROR",F36="ERROR"),"-",SUM(F95:F99)),"ERROR"))) -> - | G89: - | H89: - | I89: - | J89: - | K89: - | L89: - | M89: - | N89: - | O89: - | P89: - | Q89: - | R89: =IF($F$88=1,"-",IF($F$88=2,IF(OR(AND($E$88=1,OR(R59="geen oplossing gevonden",R61="geen oplossing gevonden")),AND($E$88=0,R51/$D$5<$AI$104)),"-",SUM(R95:R99)),IF($F$88=3,"-","ERROR"))) -> - | S89: =IF($F$88=1,"-",IF($F$88=2,IF(OR(AND($E$88=1,OR(S59="geen oplossing gevonden",S61="geen oplossing gevonden")),AND($E$88=0,S51/$D$5<$AI$104)),"-",SUM(S95:S99)),IF($F$88=3,"-","ERROR"))) -> - | T89: - | U89: - | V89: - | W89: - | X89: - | Y89: - | Z89: - | AA89: - | AB89: - | AC89: - | AD89: - | AE89: - | AF89: - | AG89: =IF($F$88=1,IF(OR(AND($E$88=0,AG33<>0),AG35="ERROR"),"-",SUM(AG95:AG99)),IF($F$88=2,IF(OR(AND($E$88=1,OR(AG59="geen oplossing gevonden",AG61="geen oplossing gevonden")),AND($E$88=0,AG51/$D$5<$AI$104)),"-",SUM(AG95:AG99)),IF($F$88=3,IF(OR(AND($E$88=1,OR(AG59="geen oplossing gevonden",AG61="geen oplossing gevonden",AG34="geen oplossing gevonden")),AND($E$88=0,OR(AG51/$D$5<$AI$104,AG33<>0)),AG35="ERROR",AG36="ERROR"),"-",SUM(AG95:AG99)),"ERROR"))) -> 33169.6715 | AH89: =IF(OR($F$88=1,AND($F$88=3,$AL$24=0)),"-",IF(OR($F$88=2,AND($F$88=3,$AL$24=1)),IF(OR(AND($E$88=1,OR(AH59="geen oplossing gevonden",AH61="geen oplossing gevonden")),AND($E$88=0,AH51/$D$5<$AI$104)),"-",SUM(AH95:AH99)),"ERROR")) -> - | AI89: =IF(OR($F$88=1,$F$88=3,AND($F$88=2,$AL$24=0)),"-",IF(AND($F$88=2,$AL$24=1),IF(OR(AND($E$88=1,OR(AI59="geen oplossing gevonden",AI61="geen oplossing gevonden")),AND($E$88=0,AI51/$D$5<$AI$104)),"-",SUM(AI95:AI99)),"ERROR")) -> - | AJ89: =IF(OR($F$88=1,AND($F$88=3,$AL$24=0)),"-",IF(OR($F$88=2,AND($F$88=3,$AL$24=1)),IF(OR(AND($E$88=1,OR(AJ59="geen oplossing gevonden",AJ61="geen oplossing gevonden")),AND($E$88=0,AJ51/$D$5<$AI$104)),"-",SUM(AJ95:AJ99)),"ERROR")) -> - | AK89: - | AL89: - | AM89: =IF($F$88=1,"-",IF($F$88=2,IF(OR(AND($E$88=1,OR(AM59="geen oplossing gevonden",AM61="geen oplossing gevonden")),AND($E$88=0,AM51/$D$5<$AI$104)),"-",SUM(AM95:AM99)),IF($F$88=3,"-","ERROR"))) -> - | AN89: - | AO89: - | AP89: - | AQ89: - | AR89: -
B90: Zuivering Capaciteit | D90: m3/uur | E90: =IF($F$88=1,"n.v.t.",IF($F$88=2,E51,IF($F$88=3,E51,"ERROR"))) -> 0.7 | F90: =IF($F$88=1,"n.v.t.",IF($F$88=2,F51,IF($F$88=3,F51,"ERROR"))) -> 1.2 | G90: 3 | H90: 4 | I90: 6 | J90: 10 | K90: 0.53 | L90: 0.7 | M90: 1.05 | N90: 1.4 | O90: 2.1 | P90: 2.8 | Q90: 3.5 | R90: 0.4 | S90: 0.8 | T90: 1.2 | U90: 1.6 | V90: 2.4 | W90: 3.2 | X90: 4.8 | Y90: =IF($F$88=1,"n.v.t.",IF($F$88=2,Y51,IF($F$88=3,Y51,"ERROR"))) -> 6.4 | Z90: =IF($F$88=1,"n.v.t.",IF($F$88=2,Z51,IF($F$88=3,Z51,"ERROR"))) -> 0.48 | AA90: 0.6 | AB90: 1.5 | AC90: 2.5 | AD90: 5 | AE90: 10 | AF90: 20 | AG90: 30 | AH90: 0.75 | AI90: =IF($F$88=1,"n.v.t.",IF($F$88=2,AI51,IF($F$88=3,AI51,"ERROR"))) -> 1.25 | AJ90: 1.5 | AK90: 2.25 | AL90: 3 | AM90: 0.75 | AN90: 1.5 | AO90: 2.25 | AP90: 3 | AQ90: 3.75 | AR90: 4.5
B91: Ontsmetting Capaciteit | D91: m3/uur | E91: =IF($F$88=1,E27,IF($F$88=2,"n.v.t.",IF($F$88=3,E27,"ERROR"))) -> n.v.t. | F91: n.v.t. | G91: n.v.t. | H91: n.v.t. | I91: n.v.t. | J91: n.v.t. | K91: n.v.t. | L91: n.v.t. | M91: n.v.t. | N91: n.v.t. | O91: n.v.t. | P91: n.v.t. | Q91: n.v.t. | R91: n.v.t. | S91: n.v.t. | T91: n.v.t. | U91: n.v.t. | V91: n.v.t. | W91: n.v.t. | X91: n.v.t. | Y91: n.v.t. | Z91: =IF($F$88=1,Z27,IF($F$88=2,"n.v.t.",IF($F$88=3,Z27,"ERROR"))) -> n.v.t. | AA91: n.v.t. | AB91: n.v.t. | AC91: n.v.t. | AD91: n.v.t. | AE91: n.v.t. | AF91: n.v.t. | AG91: n.v.t. | AH91: n.v.t. | AI91: =IF($F$88=1,AI27,IF($F$88=2,"n.v.t.",IF($F$88=3,AI27,"ERROR"))) -> n.v.t. | AJ91: n.v.t. | AK91: n.v.t. | AL91: n.v.t. | AM91: n.v.t. | AN91: n.v.t. | AO91: n.v.t. | AP91: n.v.t. | AQ91: n.v.t. | AR91: n.v.t.
B92: Nodige zuivering buffer | D92: m3 | E92: =IF($F$88=1,"n.v.t.",IF($F$88=2,E58,IF($F$88=3,E58,"ERROR"))) -> 25 | F92: =IF($F$88=1,"n.v.t.",IF($F$88=2,F58,IF($F$88=3,F58,"ERROR"))) -> 0 | G92: 0 | H92: 0 | I92: 0 | J92: 0 | K92: 25 | L92: 25 | M92: 0 | N92: 0 | O92: 0 | P92: 0 | Q92: 0 | R92: 25 | S92: 25 | T92: 0 | U92: 0 | V92: 0 | W92: 0 | X92: 0 | Y92: 0 | Z92: 25 | AA92: 25 | AB92: 0 | AC92: 0 | AD92: 0 | AE92: 0 | AF92: 0 | AG92: 0 | AH92: 25 | AI92: =IF($F$88=1,"n.v.t.",IF($F$88=2,AI58,IF($F$88=3,AI58,"ERROR"))) -> 0 | AJ92: 0 | AK92: 0 | AL92: 0 | AM92: 25 | AN92: 0 | AO92: 0 | AP92: 0 | AQ92: 0 | AR92: 0
B93: Nodige ontsmetting buffer | D93: m3 | E93: =IF($F$88=1,E33,IF($F$88=2,"n.v.t.",IF($F$88=3,E33,"ERROR"))) -> n.v.t. | F93: =IF($F$88=1,F33,IF($F$88=2,"n.v.t.",IF($F$88=3,F33,"ERROR"))) -> n.v.t. | G93: n.v.t. | H93: n.v.t. | I93: n.v.t. | J93: n.v.t. | K93: n.v.t. | L93: n.v.t. | M93: n.v.t. | N93: n.v.t. | O93: n.v.t. | P93: n.v.t. | Q93: n.v.t. | R93: n.v.t. | S93: n.v.t. | T93: n.v.t. | U93: n.v.t. | V93: n.v.t. | W93: n.v.t. | X93: n.v.t. | Y93: n.v.t. | Z93: n.v.t. | AA93: n.v.t. | AB93: n.v.t. | AC93: n.v.t. | AD93: n.v.t. | AE93: n.v.t. | AF93: n.v.t. | AG93: n.v.t. | AH93: n.v.t. | AI93: =IF($F$88=1,AI33,IF($F$88=2,"n.v.t.",IF($F$88=3,AI33,"ERROR"))) -> n.v.t. | AJ93: n.v.t. | AK93: n.v.t. | AL93: n.v.t. | AM93: n.v.t. | AN93: n.v.t. | AO93: n.v.t. | AP93: n.v.t. | AQ93: n.v.t. | AR93: n.v.t.
B94: totale prijs | D94: € | E94: =IF($F$88=1,IF(OR(AND($E$88=0,E33<>0),E35="ERROR"),"-",E28+E34),IF($F$88=2,IF(OR(AND($E$88=1,OR(E59="geen oplossing gevonden",E61="geen oplossing gevonden")),AND($E$88=0,E51/$D$5<$AI$104)),"-",E52+E59+E61),IF($F$88=3,IF(OR(AND($E$88=1,OR(E59="geen oplossing gevonden",E61="geen oplossing gevonden",E34="geen oplossing gevonden")),AND($E$88=0,OR(E51/$D$5<$AI$104,E33<>0)),E35="ERROR",E36="ERROR"),"-",E28+E34+E59+E61),"ERROR"))) -> - | F94: =IF($F$88=1,IF(OR(AND($E$88=0,F33<>0),F35="ERROR"),"-",F28+F34),IF($F$88=2,IF(OR(AND($E$88=1,OR(F59="geen oplossing gevonden",F61="geen oplossing gevonden")),AND($E$88=0,F51/$D$5<$AI$104)),"-",F52+F59+F61),IF($F$88=3,IF(OR(AND($E$88=1,OR(F59="geen oplossing gevonden",F61="geen oplossing gevonden",F34="geen oplossing gevonden")),AND($E$88=0,OR(F51/$D$5<$AI$104,F33<>0)),F35="ERROR",F36="ERROR"),"-",F28+F34+F59+F61),"ERROR"))) -> - | G94: - | H94: - | I94: - | J94: - | K94: - | L94: - | M94: - | N94: - | O94: - | P94: - | Q94: - | R94: =IF(OR($F$88=1,$F$88=3),"-",IF($F$88=2,IF(OR(AND($E$88=1,OR(R59="geen oplossing gevonden",R61="geen oplossing gevonden")),AND($E$88=0,R51/$D$5<$AI$104)),"-",R52+R59+R61),"ERROR")) -> - | S94: =IF(OR($F$88=1,$F$88=3),"-",IF($F$88=2,IF(OR(AND($E$88=1,OR(S59="geen oplossing gevonden",S61="geen oplossing gevonden")),AND($E$88=0,S51/$D$5<$AI$104)),"-",S52+S59+S61),"ERROR")) -> - | T94: =IF(OR($F$88=1,$F$88=3),"-",IF($F$88=2,IF(OR(AND($E$88=1,OR(T59="geen oplossing gevonden",T61="geen oplossing gevonden")),AND($E$88=0,T51/$D$5<$AI$104)),"-",T52+T59+T61),"ERROR")) -> - | U94: - | V94: - | W94: - | X94: - | Y94: - | Z94: =IF($F$88=1,IF(OR(AND($E$88=0,Z33<>0),Z35="ERROR"),"-",Z28+Z34),IF($F$88=2,IF(OR(AND($E$88=1,OR(Z59="geen oplossing gevonden",Z61="geen oplossing gevonden")),AND($E$88=0,Z51/$D$5<$AI$104)),"-",IF($AG$24=0,Z52,Z53)+Z59+Z61),IF($F$88=3,IF(OR(AND($E$88=1,OR(Z59="geen oplossing gevonden",Z61="geen oplossing gevonden",Z34="geen oplossing gevonden")),AND($E$88=0,OR(Z51/$D$5<$AI$104,Z33<>0)),Z35="ERROR",Z36="ERROR"),"-",IF($AG$24=0,Z28,Z53)+Z34+Z59+Z61),"ERROR"))) -> - | AA94: =IF($F$88=1,IF(OR(AND($E$88=0,AA33<>0),AA35="ERROR"),"-",AA28+AA34),IF($F$88=2,IF(OR(AND($E$88=1,OR(AA59="geen oplossing gevonden",AA61="geen oplossing gevonden")),AND($E$88=0,AA51/$D$5<$AI$104)),"-",IF($AG$24=0,AA52,AA53)+AA59+AA61),IF($F$88=3,IF(OR(AND($E$88=1,OR(AA59="geen oplossing gevonden",AA61="geen oplossing gevonden",AA34="geen oplossing gevonden")),AND($E$88=0,OR(AA51/$D$5<$AI$104,AA33<>0)),AA35="ERROR",AA36="ERROR"),"-",IF($AG$24=0,AA28,AA53)+AA34+AA59+AA61),"ERROR"))) -> - | AB94: =IF($F$88=1,IF(OR(AND($E$88=0,AB33<>0),AB35="ERROR"),"-",AB28+AB34),IF($F$88=2,IF(OR(AND($E$88=1,OR(AB59="geen oplossing gevonden",AB61="geen oplossing gevonden")),AND($E$88=0,AB51/$D$5<$AI$104)),"-",AB52+AB59+AB61),IF($F$88=3,IF(OR(AND($E$88=1,OR(AB59="geen oplossing gevonden",AB61="geen oplossing gevonden",AB34="geen oplossing gevonden")),AND($E$88=0,OR(AB51/$D$5<$AI$104,AB33<>0)),AB35="ERROR",AB36="ERROR"),"-",AB28+AB34+AB59+AB61),"ERROR"))) -> - | AC94: - | AD94: - | AE94: - | AF94: - | AG94: 259000 | AH94: =IF(OR($F$88=1,AND($F$88=3,$AL$24=0)),"-",IF($F$88=2,IF(OR(AND($E$88=1,OR(AH59="geen oplossing gevonden",AH61="geen oplossing gevonden")),AND($E$88=0,AH51/$D$5<$AI$104)),"-",IF($AL$24=0,AH52,AH53)+AH59+AH61),IF(AND($F$88=3,$AL$24=1),IF(OR(AND($E$88=1,OR(AH59="geen oplossing gevonden",AH61="geen oplossing gevonden")),AND($E$88=0,AH51/$D$5<$AI$104)),"-",AH53+AH59+AH61),"ERROR"))) -> - | AI94: =IF(OR($F$88=1,$F$88=3,AND($F$88=2,$AL$24=0)),"-",IF(AND($F$88=2,$AL$24=1),IF(OR(AND($E$88=1,OR(AI59="geen oplossing gevonden",AI61="geen oplossing gevonden")),AND($E$88=0,AI51/$D$5<$AI$104)),"-",AI53+AI59+AI61),"ERROR")) -> - | AJ94: =IF(OR($F$88=1,AND($F$88=3,$AL$24=0)),"-",IF($F$88=2,IF(OR(AND($E$88=1,OR(AJ59="geen oplossing gevonden",AJ61="geen oplossing gevonden")),AND($E$88=0,AJ51/$D$5<$AI$104)),"-",IF($AL$24=0,AJ52,AJ53)+AJ59+AJ61),IF(AND($F$88=3,$AL$24=1),IF(OR(AND($E$88=1,OR(AJ59="geen oplossing gevonden",AJ61="geen oplossing gevonden")),AND($E$88=0,AJ51/$D$5<$AI$104)),"-",AJ53+AJ59+AJ61),"ERROR"))) -> - | AK94: - | AL94: - | AM94: =IF(OR($F$88=1,$F$88=3),"-",IF($F$88=2,IF(OR(AND($E$88=1,OR(AM59="geen oplossing gevonden",AM61="geen oplossing gevonden")),AND($E$88=0,AM51/$D$5<$AI$104)),"-",AM52+AM59+AM61),"ERROR")) -> - | AN94: - | AO94: - | AP94: - | AQ94: - | AR94: -
B95: Afschrijving | D95: €/jaar | E95: =IF(E94="-","-",E94/afschrijving) -> - | F95: - | G95: - | H95: - | I95: - | J95: - | K95: - | L95: - | M95: - | N95: - | O95: - | P95: - | Q95: - | R95: - | S95: - | T95: - | U95: - | V95: - | W95: - | X95: - | Y95: - | Z95: - | AA95: - | AB95: - | AC95: - | AD95: - | AE95: - | AF95: - | AG95: 25900 | AH95: - | AI95: - | AJ95: - | AK95: - | AL95: - | AM95: - | AN95: - | AO95: - | AP95: - | AQ95: - | AR95: -
B96: Rent | D96: €/jaar | E96: =IF(E95="-",0,IF(E95>0,E95*$D$12*0.01,0)) -> 0 | F96: =IF(F95="-",0,IF(F95>0,F95*$D$12*0.01,0)) -> 0 | G96: 0 | H96: 0 | I96: 0 | J96: 0 | K96: 0 | L96: 0 | M96: 0 | N96: 0 | O96: 0 | P96: 0 | Q96: 0 | R96: 0 | S96: 0 | T96: 0 | U96: 0 | V96: 0 | W96: 0 | X96: 0 | Y96: 0 | Z96: 0 | AA96: 0 | AB96: 0 | AC96: 0 | AD96: 0 | AE96: 0 | AF96: 0 | AG96: 1813 | AH96: 0 | AI96: 0 | AJ96: 0 | AK96: 0 | AL96: 0 | AM96: 0 | AN96: 0 | AO96: 0 | AP96: 0 | AQ96: 0 | AR96: 0
B97: Kracht | D97: €/jaar | E97: =IF($F$88=1,E30*$C$105,IF($F$88=2,E55*$M$105,IF($F$88=3,(E55*$M$105+E30*$C$105),"ERROR")))*KostElec*Oppervlak -> 43.0353 | F97: =IF($F$88=1,F30*$C$105,IF($F$88=2,F55*$M$105,IF($F$88=3,(F55*$M$105+F30*$C$105),"ERROR")))*KostElec*Oppervlak -> 34.02 | G97: 31.9788 | H97: 31.8087 | I97: 25.3449 | J97: =IF($F$88=1,J30*$C$105,IF($F$88=2,J55*$M$105,IF($F$88=3,(J55*$M$105+J30*$C$105),"ERROR")))*KostElec*Oppervlak -> 23.9841 | K97: =IF($F$88=1,K30*$C$105,IF($F$88=2,K55*$M$105,IF($F$88=3,(K55*$M$105+K30*$C$105),"ERROR")))*KostElec*Oppervlak -> 47.628 | L97: 45.927 | M97: 44.226 | N97: 44.226 | O97: 42.525 | P97: 40.824 | Q97: 40.824 | R97: 52.731 | S97: 52.731 | T97: 52.731 | U97: 52.731 | V97: 52.731 | W97: 52.731 | X97: 52.731 | Y97: 52.731 | Z97: 11.907 | AA97: 10.206 | AB97: 8.505 | AC97: 4.4226 | AD97: 3.7422 | AE97: 2.5515 | AF97: 2.5515 | AG97: 2.5515 | AH97: 61.236 | AI97: 173.502 | AJ97: 49.329 | AK97: 45.927 | AL97: 44.226 | AM97: 25.515 | AN97: 23.814 | AO97: 22.113 | AP97: 23.814 | AQ97: 22.113 | AR97: 23.814
B98: Producten | D98: €/jaar | E98: =IF($F$88=1,E31*$C$105,IF($F$88=2,E56*$M$105,IF($F$88=3,(E56*$M$105+E31*$C$105),"ERROR")))*Oppervlak -> 0 | F98: =IF($F$88=1,F31*$C$105*$D$5,IF($F$88=2,F56*$M$105*$D$5,IF($F$88=3,(F56*$M$105+F31*$C$105)*$D$5,"ERROR"))) -> 0 | G98: 0 | H98: 0 | I98: 0 | J98: 0 | K98: 14.58 | L98: 14.58 | M98: 14.58 | N98: 14.58 | O98: 14.58 | P98: 14.58 | Q98: 14.58 | R98: 70.47 | S98: 70.47 | T98: 70.47 | U98: 70.47 | V98: 70.47 | W98: 70.47 | X98: 70.47 | Y98: 70.47 | Z98: 204.12 | AA98: 204.12 | AB98: 204.12 | AC98: 204.12 | AD98: 204.12 | AE98: 204.12 | AF98: 204.12 | AG98: 204.12 | AH98: 97.2 | AI98: 43.74 | AJ98: 97.2 | AK98: 97.2 | AL98: 97.2 | AM98: 31.59 | AN98: 31.59 | AO98: 31.59 | AP98: 31.59 | AQ98: 31.59 | AR98: 31.59
B99: Onderhoud | D99: €/jaar | E99: =IF($F$88=1,E32,IF($F$88=2,E57,IF($F$88=3,E32,"ERROR"))) -> 1050 | F99: =IF($F$88=1,F32,IF($F$88=2,F57,IF($F$88=3,F32,"ERROR"))) -> 1150 | G99: 2400 | H99: 2800 | I99: 3250 | J99: 4300 | K99: 1190 | L99: 1317 | M99: 1479 | N99: 1602 | O99: 1988 | P99: 2317 | Q99: =IF($F$88=1,Q32,IF($F$88=2,Q57,IF($F$88=3,Q32,"ERROR"))) -> 2577 | R99: 200 | S99: 200 | T99: 200 | U99: 200 | V99: 250 | W99: 250 | X99: 250 | Y99: 300 | Z99: 1000 | AA99: 1200 | AB99: 1375 | AC99: 1375 | AD99: 1750 | AE99: 1750 | AF99: 3500 | AG99: 5250 | AH99: 36.45 | AI99: 53.46 | AJ99: 29.16 | AK99: 26.73 | AL99: 24.3 | AM99: 1308 | AN99: 1760 | AO99: 2210 | AP99: 2662 | AQ99: 3112 | AR99: 3563
C101: Ontsmetting | I101: Zuivering | R101: 108 | S101: combinatie | V101: =VolDbuffer/Oppervlak -> 50 | W101: 0.2 | X101: 0.9 | AJ101: WaterStroomModel
B102: Datum | C102: Drain water | D102: Drain buffer | E102: Ontsmetting | F102: Schoonwater buffer | G102: Drain Recycle | H102: controol | I102: LozingOpNa | J102: LozingOverl | K102: LozingFilter | L102: LozingTeeltw | M102: Lozing | O102: Zbuffer | P102: Zuivering | Q102: Rbuffer | R102: Riool | S102: Drain buffer | T102: Zbuffer | U102: Gebruik | V102: Ontsmetting/Zuivering | W102: Rbuffer | X102: Riool | Y102: Schoonwater buffer | Z102: controol | AB102: Uur | AC102: Drain | AD102: DrainRecl | AE102: LozingOpNa | AF102: LozingOverl | AG102: LozingFilter | AH102: LozingTeeltw | AI102: Lozing | AJ102: startteelt | AK102: 135
B103: - | C103: m3/d/ha | D103: m3/ha | E103: m3/d/ha | F103: m3/ha | G103: m3/d/ha | H103: 0-1 | I103: m3/d/ha | J103: m3/d/ha | K103: m3/d/ha | L103: m3/d/ha | M103: m3/d/ha | O103: m3/ha | P103: m3/d/ha | Q103: m3/ha | R103: m3/u/ha | S103: m3/d/ha | T103: m3/ha | U103: m3/d/ha | V103: m3/d/ha | W103: m3/ha | X103: m3/d/ha | Y103: m3/ha | Z103: 0-1 | AB103: - | AC103: m3/u/ha | AD103: m3/u/ha | AE103: m3/u/ha | AF103: m3/u/ha | AG103: m3/u/ha | AH103: m3/u/ha | AI103: m3/u/ha | AJ103: eindeteelt | AK103: 207
B104: Max | C104: =MAX(C106:C8865) -> 21.60320678 | D104: =MAX(D106:D8865) -> 2433.980785 | E104: =MAX(E106:E8865) -> 0 | F104: 0 | G104: 21.48844889 | H104: 1 | I104: 10.21547686 | J104: 0 | K104: 1.7 | L104: 25 | M104: =MAX(M106:M8865) -> 25 | O104: 25 | P104: 25 | Q104: 25 | R104: 12 | S104: =MAX(S106:S8865) -> 2433.980785 | T104: 243.4570446 | V104: =MAX(V106:V8865) -> 0 | W104: =MAX(W106:W8865) -> 0 | X104: =MAX(X106:X8865) -> 0 | Y104: =MAX(Y106:Y8865) -> 0 | Z104: =MAX(Z106:Z8865) -> 1 | AC104: =MAX(AC106:AC8865) -> 2.913996005 | AD104: 2.913996005 | AE104: 2.889622134 | AF104: 0 | AG104: 1 | AH104: 25 | AI104: =MAX(AI106:AI8865) -> 25
B105: Sum | C105: =INT(SUM(C106:C8865)) -> 2433 | E105: =SUM(E106:E8865) -> 0 | G105: =SUM(G106:G8865) -> 2265.52374 | H105: 311 | I105: 105.4570446 | J105: 0 | K105: 25.5 | L105: 112.5 | M105: =INT(SUM(M106:M8865)) -> 243 | P105: =SUM(P106:P8865) -> 243.4570446 | R105: =SUM(R106:R8865) -> 243.4570446 | V105: =INT(SUM(V106:V8865)) -> 0 | W105: =SUM(W106:W8865) -> 0 | X105: =SUM(X106:X8865) -> 0 | Y105: =SUM(Y106:Y8865) -> 0 | Z105: =SUM(Z106:Z8865) -> 311 | AC105: =SUM(AC106:AC8865) -> 2433.980785 | AD105: 2265.52374 | AE105: 105.4570446 | AF105: 0 | AG105: 25.5 | AH105: 112.5 | AI105: 243.4570446
B106: 1 | C106: =SUM(AC106:AC129) -> 0 | D106: =C106 -> 0 | E106: =IF($H$101>D106,D106,$H$101) -> 0 | F106: =E106 -> 0 | G106: =SUM(AD106:AD129) -> 0 | H106: =IF(INT(G106)*1>INT(F106),1,0) -> 0 | I106: =SUM(AE106:AE129) -> 0 | J106: =SUM(AF106:AF129) -> 0 | K106: =SUM(AG106:AG129) -> 0 | L106: =SUM(AH106:AH129) -> 25 | M106: =SUM(I106:L106) -> 25 | O106: =M106 -> 25 | P106: =IF(O106<$R$101,O106,$R$101) -> 25 | Q106: =P106 -> 25 | R106: =IF(Q106<$D$7*24*Oppervlak, Q106,$D$7*24*Oppervlak) -> 12 | S106: =C106 -> 0 | T106: =M106 -> 25 | U106: =IF(S106>$W$101*$V$101,1,IF(T106>$X$101*$Z$101,2,0)) -> 2 | V106: =IF(U106=1,IF(S106>$Y$101,$Y$101,S106),IF(U106=2,IF(T106>$Z$101,$Z$101,T106),0)) -> 0 | W106: =IF(U106=2,V106,0) -> 0 | X106: =IF(W106<$D$7*24*Oppervlak, W106,24*$D$7*Oppervlak) -> 0 | Y106: =IF(U106=1,V106,0) -> 0 | Z106: =IF(INT(G106)*1>INT(Y106),1,0) -> 0 | AB106: 1 | AC106: 0 | AD106: 0 | AE106: 0 | AF106: 0 | AG106: 0 | AH106: 25 | AI106: =SUM(AE106:AH106) -> 25
B107: =B106+1 -> 2 | C107: =SUM(AC130:AC153) -> 3.144783883 | D107: =IF(D106+C107-E106>=0,D106+C107-E106,0) -> 3.144783883 | E107: =IF($H$101>D107,D107,$H$101) -> 0 | F107: =IF(E107+F106-G106>0,E107+F106-G106,0) -> 0 | G107: =SUM(AD130:AD153) -> 0 | H107: =IF(INT(G107)*1>INT(F107),1,0) -> 0 | I107: =SUM(AE130:AE153) -> 0 | J107: =SUM(AF130:AF153) -> 0 | K107: =SUM(AG130:AG153) -> 0 | L107: =SUM(AH130:AH153) -> 0 | M107: =SUM(I107:L107) -> 0 | O107: =IF(O106+M107-P106>=0,O106+M107-P106,0) -> 0 | P107: =IF(O107<$R$101,O107,$R$101) -> 0 | Q107: =IF(Q106+P107-R106>0,Q106+P107-R106,0) -> 13 | R107: 12 | S107: =IF(S106+C107-IF(U106=1,V106,0)>0,S106+C107-IF(U106=1,V106,0),0) -> 3.144783883 | T107: =IF(T106+M107-IF(U106=2,V106,0)>=0,T106+M107-IF(U106=2,V106,0),0) -> 25 | U107: =IF(S107>$W$101*$V$101,1,IF(T107>$X$101*$Z$101,2,0)) -> 2 | V107: =IF(U107=1,IF(S107>$Y$101,$Y$101,S107),IF(U107=2,IF(T107>$Z$101,$Z$101,T107),0)) -> 0 | W107: =IF(U107=2,IF(W106+V107-X106>0,W106+V107-X106,0),IF(W106-X106>0,W106-X106,0)) -> 0 | X107: 0 | Y107: =IF(U107=1,IF(Y106+V107-G106>0,Y106+V107-G106,0),IF(Y106-G106>0,Y106-G106,0)) -> 0 | Z107: =IF(INT(G107)*1>INT(Y107),1,0) -> 0 | AB107: 2 | AC107: 0 | AD107: 0 | AE107: 0 | AF107: 0 | AG107: 0 | AH107: 0 | AI107: =SUM(AE107:AH107) -> 0
B108: =B107+1 -> 3 | C108: =SUM(AC154:AC177) -> 7.489857333 | D108: =IF(D107+C108-E107>=0,D107+C108-E107,0) -> 10.63464122 | E108: 0 | F108: =IF(E108+F107-G107>0,E108+F107-G107,0) -> 0 | G108: =SUM(AD154:AD177) -> 0 | H108: 0 | I108: =SUM(AE154:AE177) -> 0 | J108: =SUM(AF154:AF177) -> 0 | K108: =SUM(AG154:AG177) -> 0 | L108: =SUM(AH154:AH177) -> 0 | M108: =SUM(I108:L108) -> 0 | O108: =IF(O107+M108-P107>=0,O107+M108-P107,0) -> 0 | P108: 0 | Q108: 1 | R108: 1 | S108: =IF(S107+C108-IF(U107=1,V107,0)>0,S107+C108-IF(U107=1,V107,0),0) -> 10.63464122 | T108: =IF(T107+M108-IF(U107=2,V107,0)>=0,T107+M108-IF(U107=2,V107,0),0) -> 25 | U108: =IF(S108>$W$101*$V$101,1,IF(T108>$X$101*$Z$101,2,0)) -> 1 | V108: =IF(U108=1,IF(S108>$Y$101,$Y$101,S108),IF(U108=2,IF(T108>$Z$101,$Z$101,T108),0)) -> 0 | W108: =IF(U108=2,IF(W107+V108-X107>0,W107+V108-X107,0),IF(W107-X107>0,W107-X107,0)) -> 0 | X108: 0 | Y108: =IF(U108=1,IF(Y107+V108-G107>0,Y107+V108-G107,0),IF(Y107-G107>0,Y107-G107,0)) -> 0 | Z108: 0 | AB108: 3 | AC108: 0 | AD108: 0 | AE108: 0 | AF108: 0 | AG108: 0 | AH108: 0 | AI108: =SUM(AE108:AH108) -> 0
B109: 4 | C109: =SUM(AC178:AC201) -> 7.814102019 | D109: 18.44874323 | E109: 0 | F109: 0 | G109: =SUM(AD178:AD201) -> 5.948743235 | H109: 1 | I109: =SUM(AE178:AE201) -> 0 | J109: =SUM(AF178:AF201) -> 0 | K109: =SUM(AG178:AG201) -> 0 | L109: =SUM(AH178:AH201) -> 0 | M109: 0 | O109: 0 | P109: 0 | Q109: 0 | R109: 0 | S109: 18.44874323 | T109: 25 | U109: 1 | V109: 0 | W109: 0 | X109: 0 | Y109: 0 | Z109: 1 | AB109: 4 | AC109: 0 | AD109: 0 | AE109: 0 | AF109: 0 | AG109: 0 | AH109: 0 | AI109: 0
B110: 5 | C110: =SUM(AC202:AC225) -> 4.619055219 | D110: 23.06779845 | E110: 0 | F110: 0 | G110: =SUM(AD202:AD225) -> 4.619055219 | H110: 1 | I110: =SUM(AE202:AE225) -> 0 | J110: =SUM(AF202:AF225) -> 0 | K110: =SUM(AG202:AG225) -> 0 | L110: =SUM(AH202:AH225) -> 0 | M110: 0 | O110: 0 | P110: 0 | Q110: 0 | R110: 0 | S110: 23.06779845 | T110: 25 | U110: 1 | V110: 0 | W110: 0 | X110: 0 | Y110: 0 | Z110: 1 | AB110: 5 | AC110: 0 | AD110: 0 | AE110: 0 | AF110: 0 | AG110: 0 | AH110: 0 | AI110: 0
B111: 6 | C111: =SUM(AC226:AC249) -> 6.853564608 | D111: 29.92136306 | E111: 0 | F111: 0 | G111: =SUM(AD226:AD249) -> 6.853564608 | H111: 1 | I111: =SUM(AE226:AE249) -> 0 | J111: =SUM(AF226:AF249) -> 0 | K111: =SUM(AG226:AG249) -> 0 | L111: =SUM(AH226:AH249) -> 0 | M111: 0 | O111: 0 | P111: 0 | Q111: 0 | R111: 0 | S111: 29.92136306 | T111: 25 | U111: 1 | V111: 0 | W111: 0 | X111: 0 | Y111: 0 | Z111: 1 | AB111: 6 | AC111: 0 | AD111: 0 | AE111: 0 | AF111: 0 | AG111: 0 | AH111: 0 | AI111: 0
B112: 7 | C112: =SUM(AC250:AC273) -> 5.180020399 | D112: 35.10138346 | E112: 0 | F112: 0 | G112: =SUM(AD250:AD273) -> 5.180020399 | H112: 1 | I112: =SUM(AE250:AE273) -> 0 | J112: =SUM(AF250:AF273) -> 0 | K112: =SUM(AG250:AG273) -> 0 | L112: =SUM(AH250:AH273) -> 0 | M112: 0 | O112: 0 | P112: 0 | Q112: 0 | R112: 0 | S112: 35.10138346 | T112: 25 | U112: 1 | V112: 0 | W112: 0 | X112: 0 | Y112: 0 | Z112: 1 | AB112: 7 | AC112: 0 | AD112: 0 | AE112: 0 | AF112: 0 | AG112: 0 | AH112: 0 | AI112: 0
B113: 8 | C113: =SUM(AC274:AC297) -> 6.984507893 | D113: 42.08589135 | E113: 0 | F113: 0 | G113: =SUM(AD274:AD297) -> 6.984507893 | H113: 1 | I113: =SUM(AE274:AE297) -> 0 | J113: =SUM(AF274:AF297) -> 0 | K113: =SUM(AG274:AG297) -> 0 | L113: =SUM(AH274:AH297) -> 0 | M113: 0 | O113: 0 | P113: 0 | Q113: 0 | R113: 0 | S113: 42.08589135 | T113: 25 | U113: 1 | V113: 0 | W113: 0 | X113: 0 | Y113: 0 | Z113: 1 | AB113: 8 | AC113: 0 | AD113: 0 | AE113: 0 | AF113: 0 | AG113: 0 | AH113: 0 | AI113: 0
B114: 9 | C114: =SUM(AC298:AC321) -> 8.519530286 | D114: 50.60542164 | E114: 0 | F114: 0 | G114: =SUM(AD298:AD321) -> 8.519530286 | H114: 1 | I114: =SUM(AE298:AE321) -> 0 | J114: =SUM(AF298:AF321) -> 0 | K114: =SUM(AG298:AG321) -> 0 | L114: =SUM(AH298:AH321) -> 0 | M114: 0 | O114: 0 | P114: 0 | Q114: 0 | R114: 0 | S114: 50.60542164 | T114: 25 | U114: 1 | V114: 0 | W114: 0 | X114: 0 | Y114: 0 | Z114: 1 | AB114: 9 | AC114: 0 | AD114: 0 | AE114: 0 | AF114: 0 | AG114: 0 | AH114: 0 | AI114: 0
B115: 10 | C115: =SUM(AC322:AC345) -> 7.816358046 | D115: 58.42177969 | E115: 0 | F115: 0 | G115: =SUM(AD322:AD345) -> 7.816358046 | H115: 1 | I115: =SUM(AE322:AE345) -> 0 | J115: =SUM(AF322:AF345) -> 0 | K115: =SUM(AG322:AG345) -> 0 | L115: =SUM(AH322:AH345) -> 0 | M115: 0 | O115: 0 | P115: 0 | Q115: 0 | R115: 0 | S115: 58.42177969 | T115: 25 | U115: 1 | V115: 0 | W115: 0 | X115: 0 | Y115: 0 | Z115: 1 | AB115: 10 | AC115: 0 | AD115: 0 | AE115: 0 | AF115: 0 | AG115: 0 | AH115: 0 | AI115: 0
B116: 11 | C116: =SUM(AC346:AC369) -> 9.146159324 | D116: 67.56793901 | E116: 0 | F116: 0 | G116: =SUM(AD346:AD369) -> 9.146159324 | H116: 1 | I116: =SUM(AE346:AE369) -> 0 | J116: =SUM(AF346:AF369) -> 0 | K116: =SUM(AG346:AG369) -> 0 | L116: =SUM(AH346:AH369) -> 0 | M116: 0 | O116: 0 | P116: 0 | Q116: 0 | R116: 0 | S116: =IF(S115+C116-IF(U115=1,V115,0)>0,S115+C116-IF(U115=1,V115,0),0) -> 67.56793901 | T116: 25 | U116: 1 | V116: 0 | W116: 0 | X116: 0 | Y116: 0 | Z116: 1 | AB116: 11 | AC116: 0 | AD116: 0 | AE116: 0 | AF116: 0 | AG116: 0 | AH116: 0 | AI116: 0
B117: 12 | C117: =SUM(AC370:AC393) -> 10.0699267 | D117: 77.63786571 | E117: 0 | F117: 0 | G117: =SUM(AD370:AD393) -> 10.0699267 | H117: 1 | I117: =SUM(AE370:AE393) -> 0 | J117: =SUM(AF370:AF393) -> 0 | K117: =SUM(AG370:AG393) -> 0 | L117: =SUM(AH370:AH393) -> 0 | M117: 0 | O117: 0 | P117: 0 | Q117: 0 | R117: 0 | S117: 77.63786571 | T117: 25 | U117: 1 | V117: 0 | W117: 0 | X117: 0 | Y117: 0 | Z117: 1 | AB117: 12 | AC117: 0 | AD117: 0 | AE117: 0 | AF117: 0 | AG117: 0 | AH117: 0 | AI117: 0
B118: 13 | C118: =SUM(AC394:AC417) -> 10.12412146 | D118: 87.76198717 | E118: 0 | F118: 0 | G118: =SUM(AD394:AD417) -> 10.12412146 | H118: 1 | I118: =SUM(AE394:AE417) -> 0 | J118: =SUM(AF394:AF417) -> 0 | K118: =SUM(AG394:AG417) -> 0 | L118: =SUM(AH394:AH417) -> 0 | M118: 0 | O118: 0 | P118: 0 | Q118: 0 | R118: 0 | S118: 87.76198717 | T118: 25 | U118: 1 | V118: 0 | W118: 0 | X118: 0 | Y118: 0 | Z118: 1 | AB118: 13 | AC118: 0 | AD118: 0 | AE118: 0 | AF118: 0 | AG118: 0 | AH118: 0 | AI118: 0
B119: 14 | C119: =SUM(AC418:AC441) -> 9.853053985 | D119: 97.61504115 | E119: 0 | F119: 0 | G119: =SUM(AD418:AD441) -> 9.853053985 | H119: 1 | I119: =SUM(AE418:AE441) -> 0 | J119: =SUM(AF418:AF441) -> 0 | K119: =SUM(AG418:AG441) -> 0 | L119: =SUM(AH418:AH441) -> 0 | M119: 0 | O119: 0 | P119: 0 | Q119: 0 | R119: 0 | S119: 97.61504115 | T119: 25 | U119: 1 | V119: 0 | W119: 0 | X119: 0 | Y119: 0 | Z119: 1 | AB119: 14 | AC119: 0 | AD119: 0 | AE119: 0 | AF119: 0 | AG119: 0 | AH119: 0 | AI119: 0
B120: 15 | C120: =SUM(AC442:AC465) -> 10.11574081 | D120: 107.730782 | E120: 0 | F120: 0 | G120: =SUM(AD442:AD465) -> 10.11574081 | H120: 1 | I120: =SUM(AE442:AE465) -> 0 | J120: =SUM(AF442:AF465) -> 0 | K120: =SUM(AG442:AG465) -> 0 | L120: =SUM(AH442:AH465) -> 0 | M120: 0 | O120: 0 | P120: 0 | Q120: 0 | R120: 0 | S120: 107.730782 | T120: 25 | U120: 1 | V120: 0 | W120: 0 | X120: 0 | Y120: 0 | Z120: 1 | AB120: 15 | AC120: 0 | AD120: 0 | AE120: 0 | AF120: 0 | AG120: 0 | AH120: 0 | AI120: 0
B121: 16 | C121: =SUM(AC466:AC489) -> 4.404186354 | D121: 112.1349683 | E121: 0 | F121: 0 | G121: =SUM(AD466:AD489) -> 4.404186354 | H121: 1 | I121: =SUM(AE466:AE489) -> 0 | J121: =SUM(AF466:AF489) -> 0 | K121: =SUM(AG466:AG489) -> 0 | L121: =SUM(AH466:AH489) -> 0 | M121: 0 | O121: 0 | P121: 0 | Q121: 0 | R121: 0 | S121: 112.1349683 | T121: 25 | U121: 1 | V121: 0 | W121: 0 | X121: 0 | Y121: 0 | Z121: 1 | AB121: 16 | AC121: 0 | AD121: 0 | AE121: 0 | AF121: 0 | AG121: 0 | AH121: 0 | AI121: 0
B122: 17 | C122: =SUM(AC490:AC513) -> 7.967219397 | D122: 120.1021877 | E122: 0 | F122: 0 | G122: =SUM(AD490:AD513) -> 7.967219397 | H122: 1 | I122: =SUM(AE490:AE513) -> 0 | J122: =SUM(AF490:AF513) -> 0 | K122: =SUM(AG490:AG513) -> 0 | L122: =SUM(AH490:AH513) -> 0 | M122: 0 | O122: 0 | P122: 0 | Q122: 0 | R122: 0 | S122: 120.1021877 | T122: 25 | U122: 1 | V122: 0 | W122: 0 | X122: 0 | Y122: 0 | Z122: 1 | AB122: 17 | AC122: 0 | AD122: 0 | AE122: 0 | AF122: 0 | AG122: 0 | AH122: 0 | AI122: 0
B123: 18 | C123: =SUM(AC514:AC537) -> 2.407031465 | D123: 122.5092192 | E123: 0 | F123: 0 | G123: =SUM(AD514:AD537) -> 2.407031465 | H123: 1 | I123: =SUM(AE514:AE537) -> 0 | J123: =SUM(AF514:AF537) -> 0 | K123: =SUM(AG514:AG537) -> 0 | L123: =SUM(AH514:AH537) -> 0 | M123: 0 | O123: 0 | P123: 0 | Q123: 0 | R123: 0 | S123: 122.5092192 | T123: 25 | U123: 1 | V123: 0 | W123: 0 | X123: 0 | Y123: 0 | Z123: 1 | AB123: 18 | AC123: 0 | AD123: 0 | AE123: 0 | AF123: 0 | AG123: 0 | AH123: 0 | AI123: 0
B124: 19 | C124: =SUM(AC538:AC561) -> 5.152528621 | D124: 127.6617478 | E124: 0 | F124: 0 | G124: =SUM(AD538:AD561) -> 5.152528621 | H124: 1 | I124: =SUM(AE538:AE561) -> 0 | J124: =SUM(AF538:AF561) -> 0 | K124: =SUM(AG538:AG561) -> 0 | L124: =SUM(AH538:AH561) -> 0 | M124: 0 | O124: 0 | P124: 0 | Q124: 0 | R124: 0 | S124: 127.6617478 | T124: 25 | U124: 1 | V124: 0 | W124: 0 | X124: 0 | Y124: 0 | Z124: 1 | AB124: 19 | AC124: 0 | AD124: 0 | AE124: 0 | AF124: 0 | AG124: 0 | AH124: 0 | AI124: 0
B125: 20 | C125: =SUM(AC562:AC585) -> 9.584506085 | D125: 137.2462539 | E125: 0 | F125: 0 | G125: =SUM(AD562:AD585) -> 9.584506085 | H125: 1 | I125: =SUM(AE562:AE585) -> 0 | J125: =SUM(AF562:AF585) -> 0 | K125: =SUM(AG562:AG585) -> 0 | L125: =SUM(AH562:AH585) -> 0 | M125: 0 | O125: 0 | P125: 0 | Q125: 0 | R125: 0 | S125: 137.2462539 | T125: 25 | U125: 1 | V125: 0 | W125: 0 | X125: 0 | Y125: 0 | Z125: 1 | AB125: 20 | AC125: 0 | AD125: 0 | AE125: 0 | AF125: 0 | AG125: 0 | AH125: 0 | AI125: 0
B126: 21 | C126: =SUM(AC586:AC609) -> 2.132767042 | D126: 139.3790209 | E126: 0 | F126: 0 | G126: =SUM(AD586:AD609) -> 2.132767042 | H126: 1 | I126: =SUM(AE586:AE609) -> 0 | J126: =SUM(AF586:AF609) -> 0 | K126: =SUM(AG586:AG609) -> 0 | L126: =SUM(AH586:AH609) -> 0 | M126: 0 | O126: 0 | P126: 0 | Q126: 0 | R126: 0 | S126: 139.3790209 | T126: 25 | U126: 1 | V126: 0 | W126: 0 | X126: 0 | Y126: 0 | Z126: 1 | AB126: 21 | AC126: 0 | AD126: 0 | AE126: 0 | AF126: 0 | AG126: 0 | AH126: 0 | AI126: 0
B127: 22 | C127: =SUM(AC610:AC633) -> 3.276628167 | D127: 142.6556491 | E127: 0 | F127: 0 | G127: =SUM(AD610:AD633) -> 3.276628167 | H127: 1 | I127: =SUM(AE610:AE633) -> 0 | J127: =SUM(AF610:AF633) -> 0 | K127: =SUM(AG610:AG633) -> 0 | L127: =SUM(AH610:AH633) -> 0 | M127: 0 | O127: 0 | P127: 0 | Q127: 0 | R127: 0 | S127: 142.6556491 | T127: 25 | U127: 1 | V127: 0 | W127: 0 | X127: 0 | Y127: 0 | Z127: 1 | AB127: 22 | AC127: 0 | AD127: 0 | AE127: 0 | AF127: 0 | AG127: 0 | AH127: 0 | AI127: 0
B128: 23 | C128: =SUM(AC634:AC657) -> 6.636596918 | D128: 149.292246 | E128: 0 | F128: 0 | G128: =SUM(AD634:AD657) -> 6.636596918 | H128: 1 | I128: =SUM(AE634:AE657) -> 0 | J128: =SUM(AF634:AF657) -> 0 | K128: =SUM(AG634:AG657) -> 0 | L128: =SUM(AH634:AH657) -> 0 | M128: 0 | O128: 0 | P128: 0 | Q128: 0 | R128: 0 | S128: 149.292246 | T128: 25 | U128: 1 | V128: 0 | W128: 0 | X128: 0 | Y128: 0 | Z128: 1 | AB128: 23 | AC128: 0 | AD128: 0 | AE128: 0 | AF128: 0 | AG128: 0 | AH128: 0 | AI128: 0
B129: 24 | C129: =SUM(AC658:AC681) -> 4.806661054 | D129: 154.0989071 | E129: 0 | F129: 0 | G129: =SUM(AD658:AD681) -> 4.806661054 | H129: 1 | I129: =SUM(AE658:AE681) -> 0 | J129: =SUM(AF658:AF681) -> 0 | K129: =SUM(AG658:AG681) -> 0 | L129: =SUM(AH658:AH681) -> 0 | M129: 0 | O129: 0 | P129: 0 | Q129: 0 | R129: 0 | S129: 154.0989071 | T129: 25 | U129: 1 | V129: 0 | W129: 0 | X129: 0 | Y129: 0 | Z129: 1 | AB129: 24 | AC129: 0 | AD129: 0 | AE129: 0 | AF129: 0 | AG129: 0 | AH129: 0 | AI129: 0
B130: 25 | C130: =SUM(AC682:AC705) -> 5.319846837 | D130: 159.4187539 | E130: 0 | F130: 0 | G130: =SUM(AD682:AD705) -> 5.319846837 | H130: 1 | I130: =SUM(AE682:AE705) -> 0 | J130: =SUM(AF682:AF705) -> 0 | K130: =SUM(AG682:AG705) -> 0 | L130: =SUM(AH682:AH705) -> 0 | M130: 0 | O130: 0 | P130: 0 | Q130: 0 | R130: 0 | S130: 159.4187539 | T130: 25 | U130: 1 | V130: 0 | W130: 0 | X130: 0 | Y130: 0 | Z130: 1 | AB130: 25 | AC130: 0 | AD130: 0 | AE130: 0 | AF130: 0 | AG130: 0 | AH130: 0 | AI130: 0
B131: 26 | C131: =SUM(AC706:AC729) -> 7.699697922 | D131: 167.1184518 | E131: 0 | F131: 0 | G131: =SUM(AD706:AD729) -> 5.999697922 | H131: 1 | I131: =SUM(AE706:AE729) -> 0 | J131: =SUM(AF706:AF729) -> 0 | K131: =SUM(AG706:AG729) -> 1.7 | L131: =SUM(AH706:AH729) -> 0 | M131: 1.7 | O131: 1.7 | P131: 1.7 | Q131: 1.7 | R131: 1.7 | S131: 167.1184518 | T131: 26.7 | U131: 1 | V131: 0 | W131: 0 | X131: 0 | Y131: 0 | Z131: 1 | AB131: 26 | AC131: 0 | AD131: 0 | AE131: 0 | AF131: 0 | AG131: 0 | AH131: 0 | AI131: 0
B132: 27 | C132: =SUM(AC730:AC753) -> 3.230337928 | D132: 170.3487897 | E132: 0 | F132: 0 | G132: =SUM(AD730:AD753) -> 3.230337928 | H132: 1 | I132: =SUM(AE730:AE753) -> 0 | J132: =SUM(AF730:AF753) -> 0 | K132: =SUM(AG730:AG753) -> 0 | L132: =SUM(AH730:AH753) -> 0 | M132: 0 | O132: 0 | P132: 0 | Q132: 0 | R132: 0 | S132: 170.3487897 | T132: 26.7 | U132: 1 | V132: 0 | W132: 0 | X132: 0 | Y132: 0 | Z132: 1 | AB132: 27 | AC132: 0 | AD132: 0 | AE132: 0 | AF132: 0 | AG132: 0 | AH132: 0 | AI132: 0
B133: 28 | C133: =SUM(AC754:AC777) -> 8.92749655 | D133: 179.2762863 | E133: 0 | F133: 0 | G133: =SUM(AD754:AD777) -> 8.92749655 | H133: 1 | I133: =SUM(AE754:AE777) -> 0 | J133: =SUM(AF754:AF777) -> 0 | K133: =SUM(AG754:AG777) -> 0 | L133: =SUM(AH754:AH777) -> 0 | M133: 0 | O133: 0 | P133: 0 | Q133: 0 | R133: 0 | S133: 179.2762863 | T133: 26.7 | U133: 1 | V133: 0 | W133: 0 | X133: 0 | Y133: 0 | Z133: 1 | AB133: 28 | AC133: 0 | AD133: 0 | AE133: 0 | AF133: 0 | AG133: 0 | AH133: 0 | AI133: 0
B134: 29 | C134: =SUM(AC778:AC801) -> 4.565556587 | D134: 183.8418429 | E134: 0 | F134: 0 | G134: =SUM(AD778:AD801) -> 4.565556587 | H134: 1 | I134: =SUM(AE778:AE801) -> 0 | J134: =SUM(AF778:AF801) -> 0 | K134: =SUM(AG778:AG801) -> 0 | L134: =SUM(AH778:AH801) -> 0 | M134: 0 | O134: 0 | P134: 0 | Q134: 0 | R134: 0 | S134: 183.8418429 | T134: 26.7 | U134: 1 | V134: 0 | W134: 0 | X134: 0 | Y134: 0 | Z134: 1 | AB134: 29 | AC134: 0.01374359265 | AD134: 0 | AE134: 0 | AF134: 0 | AG134: 0 | AH134: 0 | AI134: 0
B135: 30 | C135: =SUM(AC802:AC825) -> 4.684638063 | D135: 188.5264809 | E135: 0 | F135: 0 | G135: =SUM(AD802:AD825) -> 4.684638063 | H135: 1 | I135: =SUM(AE802:AE825) -> 0 | J135: =SUM(AF802:AF825) -> 0 | K135: =SUM(AG802:AG825) -> 0 | L135: =SUM(AH802:AH825) -> 0 | M135: 0 | O135: 0 | P135: 0 | Q135: 0 | R135: 0 | S135: 188.5264809 | T135: 26.7 | U135: 1 | V135: 0 | W135: 0 | X135: 0 | Y135: 0 | Z135: 1 | AB135: 30 | AC135: 0.07621446835 | AD135: 0 | AE135: 0 | AF135: 0 | AG135: 0 | AH135: 0 | AI135: 0
B136: 31 | C136: =SUM(AC826:AC849) -> 6.528199727 | D136: 195.0546807 | E136: 0 | F136: 0 | G136: =SUM(AD826:AD849) -> 6.528199727 | H136: 1 | I136: =SUM(AE826:AE849) -> 0 | J136: =SUM(AF826:AF849) -> 0 | K136: =SUM(AG826:AG849) -> 0 | L136: =SUM(AH826:AH849) -> 0 | M136: 0 | O136: 0 | P136: 0 | Q136: 0 | R136: 0 | S136: 195.0546807 | T136: 26.7 | U136: 1 | V136: 0 | W136: 0 | X136: 0 | Y136: 0 | Z136: 1 | AB136: 31 | AC136: 0.1074499062 | AD136: 0 | AE136: 0 | AF136: 0 | AG136: 0 | AH136: 0 | AI136: 0
B137: 32 | C137: =SUM(AC850:AC873) -> 10.05412813 | D137: 205.1088088 | E137: 0 | F137: 0 | G137: =SUM(AD850:AD873) -> 10.05412813 | H137: 1 | I137: =SUM(AE850:AE873) -> 0 | J137: =SUM(AF850:AF873) -> 0 | K137: =SUM(AG850:AG873) -> 0 | L137: =SUM(AH850:AH873) -> 0 | M137: 0 | O137: 0 | P137: 0 | Q137: 0 | R137: 0 | S137: 205.1088088 | T137: 26.7 | U137: 1 | V137: 0 | W137: 0 | X137: 0 | Y137: 0 | Z137: 1 | AB137: 32 | AC137: 0.1424335966 | AD137: 0 | AE137: 0 | AF137: 0 | AG137: 0 | AH137: 0 | AI137: 0
B138: 33 | C138: =SUM(AC874:AC897) -> 3.375295919 | D138: 208.4841047 | E138: 0 | F138: 0 | G138: =SUM(AD874:AD897) -> 3.375295919 | H138: 1 | I138: =SUM(AE874:AE897) -> 0 | J138: =SUM(AF874:AF897) -> 0 | K138: =SUM(AG874:AG897) -> 0 | L138: =SUM(AH874:AH897) -> 0 | M138: 0 | O138: 0 | P138: 0 | Q138: 0 | R138: 0 | S138: 208.4841047 | T138: 26.7 | U138: 1 | V138: 0 | W138: 0 | X138: 0 | Y138: 0 | Z138: 1 | AB138: 33 | AC138: 0.3473380689 | AD138: 0 | AE138: 0 | AF138: 0 | AG138: 0 | AH138: 0 | AI138: 0
B139: 34 | C139: =SUM(AC898:AC921) -> 8.364724555 | D139: 216.8488293 | E139: 0 | F139: 0 | G139: =SUM(AD898:AD921) -> 8.364724555 | H139: 1 | I139: =SUM(AE898:AE921) -> 0 | J139: =SUM(AF898:AF921) -> 0 | K139: =SUM(AG898:AG921) -> 0 | L139: =SUM(AH898:AH921) -> 0 | M139: 0 | O139: 0 | P139: 0 | Q139: 0 | R139: 0 | S139: 216.8488293 | T139: 26.7 | U139: 1 | V139: 0 | W139: 0 | X139: 0 | Y139: 0 | Z139: 1 | AB139: 34 | AC139: 0.3823217593 | AD139: 0 | AE139: 0 | AF139: 0 | AG139: 0 | AH139: 0 | AI139: 0
B140: 35 | C140: =SUM(AC922:AC945) -> 7.377470487 | D140: 224.2262998 | E140: 0 | F140: 0 | G140: =SUM(AD922:AD945) -> 7.377470487 | H140: 1 | I140: =SUM(AE922:AE945) -> 0 | J140: =SUM(AF922:AF945) -> 0 | K140: =SUM(AG922:AG945) -> 0 | L140: =SUM(AH922:AH945) -> 0 | M140: 0 | O140: 0 | P140: 0 | Q140: 0 | R140: 0 | S140: 224.2262998 | T140: 26.7 | U140: 1 | V140: 0 | W140: 0 | X140: 0 | Y140: 0 | Z140: 1 | AB140: 35 | AC140: 0.2011562197 | AD140: 0 | AE140: 0 | AF140: 0 | AG140: 0 | AH140: 0 | AI140: 0
B141: 36 | C141: =SUM(AC946:AC969) -> 6.23760608 | D141: 230.4639058 | E141: 0 | F141: 0 | G141: =SUM(AD946:AD969) -> 6.23760608 | H141: 1 | I141: =SUM(AE946:AE969) -> 0 | J141: =SUM(AF946:AF969) -> 0 | K141: =SUM(AG946:AG969) -> 0 | L141: =SUM(AH946:AH969) -> 0 | M141: 0 | O141: 0 | P141: 0 | Q141: 0 | R141: 0 | S141: 230.4639058 | T141: 26.7 | U141: 1 | V141: 0 | W141: 0 | X141: 0 | Y141: 0 | Z141: 1 | AB141: 36 | AC141: 0.1699207819 | AD141: 0 | AE141: 0 | AF141: 0 | AG141: 0 | AH141: 0 | AI141: 0
B142: 37 | C142: =SUM(AC970:AC993) -> 9.8634678 | D142: 240.3273736 | E142: 0 | F142: 0 | G142: =SUM(AD970:AD993) -> 9.8634678 | H142: 1 | I142: =SUM(AE970:AE993) -> 0 | J142: =SUM(AF970:AF993) -> 0 | K142: =SUM(AG970:AG993) -> 0 | L142: =SUM(AH970:AH993) -> 0 | M142: 0 | O142: 0 | P142: 0 | Q142: 0 | R142: 0 | S142: 240.3273736 | T142: 26.7 | U142: 1 | V142: 0 | W142: 0 | X142: 0 | Y142: 0 | Z142: 1 | AB142: 37 | AC142: 0.3673287491 | AD142: 0 | AE142: 0 | AF142: 0 | AG142: 0 | AH142: 0 | AI142: 0
B143: 38 | C143: =SUM(AC994:AC1017) -> 8.638785828 | D143: 248.9661595 | E143: 0 | F143: 0 | G143: =SUM(AD994:AD1017) -> 8.638785828 | H143: 1 | I143: =SUM(AE994:AE1017) -> 0 | J143: =SUM(AF994:AF1017) -> 0 | K143: =SUM(AG994:AG1017) -> 0 | L143: =SUM(AH994:AH1017) -> 0 | M143: 0 | O143: 0 | P143: 0 | Q143: 0 | R143: 0 | S143: 248.9661595 | T143: 26.7 | U143: 1 | V143: 0 | W143: 0 | X143: 0 | Y143: 0 | Z143: 1 | AB143: 38 | AC143: 0.1599254418 | AD143: 0 | AE143: 0 | AF143: 0 | AG143: 0 | AH143: 0 | AI143: 0
B144: 39 | C144: =SUM(AC1018:AC1041) -> 7.355719966 | D144: 256.3218794 | E144: 0 | F144: 0 | G144: =SUM(AD1018:AD1041) -> 7.355719966 | H144: 1 | I144: =SUM(AE1018:AE1041) -> 0 | J144: =SUM(AF1018:AF1041) -> 0 | K144: =SUM(AG1018:AG1041) -> 0 | L144: =SUM(AH1018:AH1041) -> 0 | M144: 0 | O144: 0 | P144: 0 | Q144: 0 | R144: 0 | S144: 256.3218794 | T144: 26.7 | U144: 1 | V144: 0 | W144: 0 | X144: 0 | Y144: 0 | Z144: 1 | AB144: 39 | AC144: 0.2423869977 | AD144: 0 | AE144: 0 | AF144: 0 | AG144: 0 | AH144: 0 | AI144: 0
B145: 40 | C145: =SUM(AC1042:AC1065) -> 8.173523476 | D145: 264.4954029 | E145: 0 | F145: 0 | G145: =SUM(AD1042:AD1065) -> 8.173523476 | H145: 1 | I145: =SUM(AE1042:AE1065) -> 0 | J145: =SUM(AF1042:AF1065) -> 0 | K145: =SUM(AG1042:AG1065) -> 0 | L145: =SUM(AH1042:AH1065) -> 0 | M145: 0 | O145: 0 | P145: 0 | Q145: 0 | R145: 0 | S145: 264.4954029 | T145: 26.7 | U145: 1 | V145: 0 | W145: 0 | X145: 0 | Y145: 0 | Z145: 1 | AB145: 40 | AC145: 0.316102631 | AD145: 0 | AE145: 0 | AF145: 0 | AG145: 0 | AH145: 0 | AI145: 0
B146: 41 | C146: =SUM(AC1066:AC1089) -> 8.999428284 | D146: 273.4948312 | E146: 0 | F146: 0 | G146: =SUM(AD1066:AD1089) -> 8.999428284 | H146: 1 | I146: =SUM(AE1066:AE1089) -> 0 | J146: =SUM(AF1066:AF1089) -> 0 | K146: =SUM(AG1066:AG1089) -> 0 | L146: =SUM(AH1066:AH1089) -> 0 | M146: 0 | O146: 0 | P146: 0 | Q146: 0 | R146: 0 | S146: 273.4948312 | T146: 26.7 | U146: 1 | V146: 0 | W146: 0 | X146: 0 | Y146: 0 | Z146: 1 | AB146: 41 | AC146: 0.444792635 | AD146: 0 | AE146: 0 | AF146: 0 | AG146: 0 | AH146: 0 | AI146: 0
B147: 42 | C147: =SUM(AC1090:AC1113) -> 4.12981869 | D147: 277.6246499 | E147: 0 | F147: 0 | G147: =SUM(AD1090:AD1113) -> 4.12981869 | H147: 1 | I147: =SUM(AE1090:AE1113) -> 0 | J147: =SUM(AF1090:AF1113) -> 0 | K147: =SUM(AG1090:AG1113) -> 0 | L147: =SUM(AH1090:AH1113) -> 0 | M147: 0 | O147: 0 | P147: 0 | Q147: 0 | R147: 0 | S147: 277.6246499 | T147: 26.7 | U147: 1 | V147: 0 | W147: 0 | X147: 0 | Y147: 0 | Z147: 1 | AB147: 42 | AC147: 0.138685344 | AD147: 0 | AE147: 0 | AF147: 0 | AG147: 0 | AH147: 0 | AI147: 0
B148: 43 | C148: =SUM(AC1114:AC1137) -> 8.198148546 | D148: 285.8227984 | E148: 0 | F148: 0 | G148: =SUM(AD1114:AD1137) -> 8.198148546 | H148: 1 | I148: =SUM(AE1114:AE1137) -> 0 | J148: =SUM(AF1114:AF1137) -> 0 | K148: =SUM(AG1114:AG1137) -> 0 | L148: =SUM(AH1114:AH1137) -> 0 | M148: 0 | O148: 0 | P148: 0 | Q148: 0 | R148: 0 | S148: 285.8227984 | T148: 26.7 | U148: 1 | V148: 0 | W148: 0 | X148: 0 | Y148: 0 | Z148: 1 | AB148: 43 | AC148: 0.03498369039 | AD148: 0 | AE148: 0 | AF148: 0 | AG148: 0 | AH148: 0 | AI148: 0
B149: 44 | C149: =SUM(AC1138:AC1161) -> 11.34186513 | D149: 297.1646636 | E149: 0 | F149: 0 | G149: =SUM(AD1138:AD1161) -> 11.34186513 | H149: 1 | I149: =SUM(AE1138:AE1161) -> 0 | J149: =SUM(AF1138:AF1161) -> 0 | K149: =SUM(AG1138:AG1161) -> 0 | L149: =SUM(AH1138:AH1161) -> 0 | M149: 0 | O149: 0 | P149: 0 | Q149: 0 | R149: 0 | S149: 297.1646636 | T149: 26.7 | U149: 1 | V149: 0 | W149: 0 | X149: 0 | Y149: 0 | Z149: 1 | AB149: 44 | AC149: 0 | AD149: 0 | AE149: 0 | AF149: 0 | AG149: 0 | AH149: 0 | AI149: 0
B150: 45 | C150: =SUM(AC1162:AC1185) -> 3.662672046 | D150: 300.8273356 | E150: 0 | F150: 0 | G150: =SUM(AD1162:AD1185) -> 3.662672046 | H150: 1 | I150: =SUM(AE1162:AE1185) -> 0 | J150: =SUM(AF1162:AF1185) -> 0 | K150: =SUM(AG1162:AG1185) -> 0 | L150: =SUM(AH1162:AH1185) -> 0 | M150: 0 | O150: 0 | P150: 0 | Q150: 0 | R150: 0 | S150: 300.8273356 | T150: 26.7 | U150: 1 | V150: 0 | W150: 0 | X150: 0 | Y150: 0 | Z150: 1 | AB150: 45 | AC150: 0 | AD150: 0 | AE150: 0 | AF150: 0 | AG150: 0 | AH150: 0 | AI150: 0
B151: 46 | C151: =SUM(AC1186:AC1209) -> 10.24310221 | D151: 311.0704378 | E151: 0 | F151: 0 | G151: =SUM(AD1186:AD1209) -> 10.24310221 | H151: 1 | I151: =SUM(AE1186:AE1209) -> 0 | J151: =SUM(AF1186:AF1209) -> 0 | K151: =SUM(AG1186:AG1209) -> 0 | L151: =SUM(AH1186:AH1209) -> 0 | M151: 0 | O151: 0 | P151: 0 | Q151: 0 | R151: 0 | S151: 311.0704378 | T151: 26.7 | U151: 1 | V151: 0 | W151: 0 | X151: 0 | Y151: 0 | Z151: 1 | AB151: 46 | AC151: 0 | AD151: 0 | AE151: 0 | AF151: 0 | AG151: 0 | AH151: 0 | AI151: 0
B152: 47 | C152: =SUM(AC1210:AC1233) -> 8.769483195 | D152: 319.839921 | E152: 0 | F152: 0 | G152: =SUM(AD1210:AD1233) -> 7.069483195 | H152: 1 | I152: =SUM(AE1210:AE1233) -> 0 | J152: =SUM(AF1210:AF1233) -> 0 | K152: =SUM(AG1210:AG1233) -> 1.7 | L152: =SUM(AH1210:AH1233) -> 0 | M152: 1.7 | O152: 1.7 | P152: 1.7 | Q152: 1.7 | R152: 1.7 | S152: 319.839921 | T152: 28.4 | U152: 1 | V152: 0 | W152: 0 | X152: 0 | Y152: 0 | Z152: 1 | AB152: 47 | AC152: 0 | AD152: 0 | AE152: 0 | AF152: 0 | AG152: 0 | AH152: 0 | AI152: 0
B153: 48 | C153: =SUM(AC1234:AC1257) -> 12.74254166 | D153: 332.5824627 | E153: 0 | F153: 0 | G153: =SUM(AD1234:AD1257) -> 12.74254166 | H153: 1 | I153: =SUM(AE1234:AE1257) -> 0 | J153: =SUM(AF1234:AF1257) -> 0 | K153: =SUM(AG1234:AG1257) -> 0 | L153: =SUM(AH1234:AH1257) -> 0 | M153: 0 | O153: 0 | P153: 0 | Q153: 0 | R153: 0 | S153: 332.5824627 | T153: 28.4 | U153: 1 | V153: 0 | W153: 0 | X153: 0 | Y153: 0 | Z153: 1 | AB153: 48 | AC153: 0 | AD153: 0 | AE153: 0 | AF153: 0 | AG153: 0 | AH153: 0 | AI153: 0
B154: 49 | C154: =SUM(AC1258:AC1281) -> 10.92484149 | D154: 343.5073042 | E154: 0 | F154: 0 | G154: =SUM(AD1258:AD1281) -> 10.92484149 | H154: 1 | I154: =SUM(AE1258:AE1281) -> 0 | J154: =SUM(AF1258:AF1281) -> 0 | K154: =SUM(AG1258:AG1281) -> 0 | L154: =SUM(AH1258:AH1281) -> 0 | M154: 0 | O154: 0 | P154: 0 | Q154: 0 | R154: 0 | S154: 343.5073042 | T154: 28.4 | U154: 1 | V154: 0 | W154: 0 | X154: 0 | Y154: 0 | Z154: 1 | AB154: 49 | AC154: 0 | AD154: 0 | AE154: 0 | AF154: 0 | AG154: 0 | AH154: 0 | AI154: 0
B155: 50 | C155: =SUM(AC1282:AC1305) -> 13.36309662 | D155: 356.8704008 | E155: 0 | F155: 0 | G155: =SUM(AD1282:AD1305) -> 13.36309662 | H155: 1 | I155: =SUM(AE1282:AE1305) -> 0 | J155: =SUM(AF1282:AF1305) -> 0 | K155: =SUM(AG1282:AG1305) -> 0 | L155: =SUM(AH1282:AH1305) -> 0 | M155: 0 | O155: 0 | P155: 0 | Q155: 0 | R155: 0 | S155: 356.8704008 | T155: 28.4 | U155: 1 | V155: 0 | W155: 0 | X155: 0 | Y155: 0 | Z155: 1 | AB155: 50 | AC155: 0 | AD155: 0 | AE155: 0 | AF155: 0 | AG155: 0 | AH155: 0 | AI155: 0
B156: 51 | C156: =SUM(AC1306:AC1329) -> 9.884580773 | D156: 366.7549816 | E156: 0 | F156: 0 | G156: =SUM(AD1306:AD1329) -> 9.884580773 | H156: 1 | I156: =SUM(AE1306:AE1329) -> 0 | J156: =SUM(AF1306:AF1329) -> 0 | K156: =SUM(AG1306:AG1329) -> 0 | L156: =SUM(AH1306:AH1329) -> 0 | M156: 0 | O156: 0 | P156: 0 | Q156: 0 | R156: 0 | S156: 366.7549816 | T156: 28.4 | U156: 1 | V156: 0 | W156: 0 | X156: 0 | Y156: 0 | Z156: 1 | AB156: 51 | AC156: 0 | AD156: 0 | AE156: 0 | AF156: 0 | AG156: 0 | AH156: 0 | AI156: 0
B157: 52 | C157: =SUM(AC1330:AC1353) -> 11.77111024 | D157: 378.5260918 | E157: 0 | F157: 0 | G157: =SUM(AD1330:AD1353) -> 11.77111024 | H157: 1 | I157: =SUM(AE1330:AE1353) -> 0 | J157: =SUM(AF1330:AF1353) -> 0 | K157: =SUM(AG1330:AG1353) -> 0 | L157: =SUM(AH1330:AH1353) -> 0 | M157: 0 | O157: 0 | P157: 0 | Q157: 0 | R157: 0 | S157: 378.5260918 | T157: 28.4 | U157: 1 | V157: 0 | W157: 0 | X157: 0 | Y157: 0 | Z157: 1 | AB157: 52 | AC157: 0 | AD157: 0 | AE157: 0 | AF157: 0 | AG157: 0 | AH157: 0 | AI157: 0
B158: 53 | C158: =SUM(AC1354:AC1377) -> 12.99018843 | D158: 391.5162802 | E158: 0 | F158: 0 | G158: =SUM(AD1354:AD1377) -> 12.99018843 | H158: 1 | I158: =SUM(AE1354:AE1377) -> 0 | J158: =SUM(AF1354:AF1377) -> 0 | K158: =SUM(AG1354:AG1377) -> 0 | L158: =SUM(AH1354:AH1377) -> 0 | M158: 0 | O158: 0 | P158: 0 | Q158: 0 | R158: 0 | S158: 391.5162802 | T158: 28.4 | U158: 1 | V158: 0 | W158: 0 | X158: 0 | Y158: 0 | Z158: 1 | AB158: 53 | AC158: 0.1040257963 | AD158: 0 | AE158: 0 | AF158: 0 | AG158: 0 | AH158: 0 | AI158: 0
B159: 54 | C159: =SUM(AC1378:AC1401) -> 9.027327854 | D159: 400.5436081 | E159: 0 | F159: 0 | G159: =SUM(AD1378:AD1401) -> 9.027327854 | H159: 1 | I159: =SUM(AE1378:AE1401) -> 0 | J159: =SUM(AF1378:AF1401) -> 0 | K159: =SUM(AG1378:AG1401) -> 0 | L159: =SUM(AH1378:AH1401) -> 0 | M159: 0 | O159: 0 | P159: 0 | Q159: 0 | R159: 0 | S159: 400.5436081 | T159: 28.4 | U159: 1 | V159: 0 | W159: 0 | X159: 0 | Y159: 0 | Z159: 1 | AB159: 54 | AC159: 0.2606911522 | AD159: 0 | AE159: 0 | AF159: 0 | AG159: 0 | AH159: 0 | AI159: 0
B160: 55 | C160: =SUM(AC1402:AC1425) -> 13.74871513 | D160: 414.2923232 | E160: 0 | F160: 0 | G160: =SUM(AD1402:AD1425) -> 13.74871513 | H160: 1 | I160: =SUM(AE1402:AE1425) -> 0 | J160: =SUM(AF1402:AF1425) -> 0 | K160: =SUM(AG1402:AG1425) -> 0 | L160: =SUM(AH1402:AH1425) -> 0 | M160: 0 | O160: 0 | P160: 0 | Q160: 0 | R160: 0 | S160: 414.2923232 | T160: 28.4 | U160: 1 | V160: 0 | W160: 0 | X160: 0 | Y160: 0 | Z160: 1 | AB160: 55 | AC160: 0.3095707432 | AD160: 0 | AE160: 0 | AF160: 0 | AG160: 0 | AH160: 0 | AI160: 0
B161: 56 | C161: =SUM(AC1426:AC1449) -> 5.638409858 | D161: 419.9307331 | E161: 0 | F161: 0 | G161: =SUM(AD1426:AD1449) -> 5.638409858 | H161: 1 | I161: =SUM(AE1426:AE1449) -> 0 | J161: =SUM(AF1426:AF1449) -> 0 | K161: =SUM(AG1426:AG1449) -> 0 | L161: =SUM(AH1426:AH1449) -> 0 | M161: 0 | O161: 0 | P161: 0 | Q161: 0 | R161: 0 | S161: 419.9307331 | T161: 28.4 | U161: 1 | V161: 0 | W161: 0 | X161: 0 | Y161: 0 | Z161: 1 | AB161: 56 | AC161: 0.2719710578 | AD161: 0 | AE161: 0 | AF161: 0 | AG161: 0 | AH161: 0 | AI161: 0
B162: 57 | C162: =SUM(AC1450:AC1473) -> 8.123552824 | D162: 428.0542859 | E162: 0 | F162: 0 | G162: =SUM(AD1450:AD1473) -> 8.123552824 | H162: 1 | I162: =SUM(AE1450:AE1473) -> 0 | J162: =SUM(AF1450:AF1473) -> 0 | K162: =SUM(AG1450:AG1473) -> 0 | L162: =SUM(AH1450:AH1473) -> 0 | M162: 0 | O162: 0 | P162: 0 | Q162: 0 | R162: 0 | S162: 428.0542859 | T162: 28.4 | U162: 1 | V162: 0 | W162: 0 | X162: 0 | Y162: 0 | Z162: 1 | AB162: 57 | AC162: 0.6717810459 | AD162: 0 | AE162: 0 | AF162: 0 | AG162: 0 | AH162: 0 | AI162: 0
B163: 58 | C163: =SUM(AC1474:AC1497) -> 10.93182417 | D163: 438.9861101 | E163: 0 | F163: 0 | G163: =SUM(AD1474:AD1497) -> 10.93182417 | H163: 1 | I163: =SUM(AE1474:AE1497) -> 0 | J163: =SUM(AF1474:AF1497) -> 0 | K163: =SUM(AG1474:AG1497) -> 0 | L163: =SUM(AH1474:AH1497) -> 0 | M163: 0 | O163: 0 | P163: 0 | Q163: 0 | R163: 0 | S163: 438.9861101 | T163: 28.4 | U163: 1 | V163: 0 | W163: 0 | X163: 0 | Y163: 0 | Z163: 1 | AB163: 58 | AC163: 0.8221797876 | AD163: 0 | AE163: 0 | AF163: 0 | AG163: 0 | AH163: 0 | AI163: 0
B164: 59 | C164: =SUM(AC1498:AC1521) -> 11.81210458 | D164: 450.7982147 | E164: 0 | F164: 0 | G164: =SUM(AD1498:AD1521) -> 11.81210458 | H164: 1 | I164: =SUM(AE1498:AE1521) -> 0 | J164: =SUM(AF1498:AF1521) -> 0 | K164: =SUM(AG1498:AG1521) -> 0 | L164: =SUM(AH1498:AH1521) -> 0 | M164: 0 | O164: 0 | P164: 0 | Q164: 0 | R164: 0 | S164: 450.7982147 | T164: 28.4 | U164: 1 | V164: 0 | W164: 0 | X164: 0 | Y164: 0 | Z164: 1 | AB164: 59 | AC164: 0.6993541486 | AD164: 0 | AE164: 0 | AF164: 0 | AG164: 0 | AH164: 0 | AI164: 0
B165: 60 | C165: =SUM(AC1522:AC1545) -> 14.4742092 | D165: 465.2724239 | E165: 0 | F165: 0 | G165: =SUM(AD1522:AD1545) -> 13.66247278 | H165: 1 | I165: =SUM(AE1522:AE1545) -> 2.605420315 | J165: =SUM(AF1522:AF1545) -> 0 | K165: =SUM(AG1522:AG1545) -> 0 | L165: =SUM(AH1522:AH1545) -> 0 | M165: 2.605420315 | O165: 2.605420315 | P165: 2.605420315 | Q165: 2.605420315 | R165: 2.605420315 | S165: 465.2724239 | T165: 31.00542031 | U165: 1 | V165: 0 | W165: 0 | X165: 0 | Y165: 0 | Z165: 1 | AB165: 60 | AC165: 0.8873525756 | AD165: 0 | AE165: 0 | AF165: 0 | AG165: 0 | AH165: 0 | AI165: 0
B166: 61 | C166: =SUM(AC1546:AC1569) -> 8.347608466 | D166: 473.6200323 | E166: 0 | F166: 0 | G166: =SUM(AD1546:AD1569) -> 0 | H166: 0 | I166: =SUM(AE1546:AE1569) -> 9.73349944 | J166: =SUM(AF1546:AF1569) -> 0 | K166: =SUM(AG1546:AG1569) -> 0 | L166: =SUM(AH1546:AH1569) -> 0 | M166: 9.73349944 | O166: 9.73349944 | P166: 9.73349944 | Q166: 9.73349944 | R166: 9.73349944 | S166: 473.6200323 | T166: 40.73891975 | U166: 1 | V166: 0 | W166: 0 | X166: 0 | Y166: 0 | Z166: 0 | AB166: 61 | AC166: 0.9299655524 | AD166: 0 | AE166: 0 | AF166: 0 | AG166: 0 | AH166: 0 | AI166: 0
B167: 62 | C167: =SUM(AC1570:AC1593) -> 8.943854517 | D167: 482.5638868 | E167: 0 | F167: 0 | G167: =SUM(AD1570:AD1593) -> 4.064279651 | H167: 1 | I167: =SUM(AE1570:AE1593) -> 0 | J167: =SUM(AF1570:AF1593) -> 0 | K167: =SUM(AG1570:AG1593) -> 1.7 | L167: =SUM(AH1570:AH1593) -> 0 | M167: 1.7 | O167: 1.7 | P167: 1.7 | Q167: 1.7 | R167: 1.7 | S167: 482.5638868 | T167: 42.43891975 | U167: 1 | V167: 0 | W167: 0 | X167: 0 | Y167: 0 | Z167: 1 | AB167: 62 | AC167: 0.6166348407 | AD167: 0 | AE167: 0 | AF167: 0 | AG167: 0 | AH167: 0 | AI167: 0
B168: 63 | C168: =SUM(AC1594:AC1617) -> 12.45119964 | D168: 495.0150865 | E168: 0 | F168: 0 | G168: =SUM(AD1594:AD1617) -> 12.45119964 | H168: 1 | I168: =SUM(AE1594:AE1617) -> 0 | J168: =SUM(AF1594:AF1617) -> 0 | K168: =SUM(AG1594:AG1617) -> 0 | L168: =SUM(AH1594:AH1617) -> 0 | M168: 0 | O168: 0 | P168: 0 | Q168: 0 | R168: 0 | S168: 495.0150865 | T168: 42.43891975 | U168: 1 | V168: 0 | W168: 0 | X168: 0 | Y168: 0 | Z168: 1 | AB168: 63 | AC168: 0.5188756586 | AD168: 0 | AE168: 0 | AF168: 0 | AG168: 0 | AH168: 0 | AI168: 0
B169: 64 | C169: =SUM(AC1618:AC1641) -> 7.465775685 | D169: 502.4808622 | E169: 0 | F169: 0 | G169: =SUM(AD1618:AD1641) -> 7.465775685 | H169: 1 | I169: =SUM(AE1618:AE1641) -> 0 | J169: =SUM(AF1618:AF1641) -> 0 | K169: =SUM(AG1618:AG1641) -> 0 | L169: =SUM(AH1618:AH1641) -> 0 | M169: 0 | O169: 0 | P169: 0 | Q169: 0 | R169: 0 | S169: 502.4808622 | T169: 42.43891975 | U169: 1 | V169: 0 | W169: 0 | X169: 0 | Y169: 0 | Z169: 1 | AB169: 64 | AC169: 0.556475344 | AD169: 0 | AE169: 0 | AF169: 0 | AG169: 0 | AH169: 0 | AI169: 0
B170: 65 | C170: =SUM(AC1642:AC1665) -> 9.53191741 | D170: 512.0127796 | E170: 0 | F170: 0 | G170: =SUM(AD1642:AD1665) -> 9.53191741 | H170: 1 | I170: =SUM(AE1642:AE1665) -> 0 | J170: =SUM(AF1642:AF1665) -> 0 | K170: =SUM(AG1642:AG1665) -> 0 | L170: =SUM(AH1642:AH1665) -> 0 | M170: 0 | O170: 0 | P170: 0 | Q170: 0 | R170: =IF(Q170<$D$7*24*Oppervlak, Q170,$D$7*24*Oppervlak) -> 0 | S170: 512.0127796 | T170: 42.43891975 | U170: 1 | V170: 0 | W170: 0 | X170: =IF(W170<$D$7*24*Oppervlak, W170,24*$D$7*Oppervlak) -> 0 | Y170: 0 | Z170: 1 | AB170: 65 | AC170: 0.5088490758 | AD170: 0 | AE170: 0 | AF170: 0 | AG170: 0 | AH170: 0 | AI170: 0
B171: 66 | C171: =SUM(AC1666:AC1689) -> 10.97768324 | D171: 522.9904628 | E171: =IF($H$101>D171,D171,$H$101) -> 0 | F171: 0 | G171: =SUM(AD1666:AD1689) -> 10.97768324 | H171: =IF(INT(G171)*1>INT(F171),1,0) -> 1 | I171: =SUM(AE1666:AE1689) -> 0 | J171: =SUM(AF1666:AF1689) -> 0 | K171: =SUM(AG1666:AG1689) -> 0 | L171: =SUM(AH1666:AH1689) -> 0 | M171: =SUM(I171:L171) -> 0 | O171: 0 | P171: =IF(O171<$R$101,O171,$R$101) -> 0 | Q171: =IF(Q170+P171-R170>0,Q170+P171-R170,0) -> 0 | R171: 0 | S171: 522.9904628 | T171: 42.43891975 | U171: 1 | V171: 0 | W171: 0 | X171: 0 | Y171: 0 | Z171: =IF(INT(G171)*1>INT(Y171),1,0) -> 1 | AB171: 66 | AC171: 0.2230914667 | AD171: 0 | AE171: 0 | AF171: 0 | AG171: 0 | AH171: 0 | AI171: =SUM(AE171:AH171) -> 0
B172: =B171+1 -> 67 | C172: =SUM(AC1690:AC1713) -> 11.61137265 | D172: =IF(D171+C172-E171>=0,D171+C172-E171,0) -> 534.6018355 | E172: 0 | F172: =IF(E172+F171-G171>0,E172+F171-G171,0) -> 0 | G172: =SUM(AD1690:AD1713) -> 7.015080355 | H172: 1 | I172: =SUM(AE1690:AE1713) -> 4.596292292 | J172: =SUM(AF1690:AF1713) -> 0 | K172: =SUM(AG1690:AG1713) -> 0 | L172: =SUM(AH1690:AH1713) -> 0 | M172: 4.596292292 | O172: =IF(O171+M172-P171>=0,O171+M172-P171,0) -> 4.596292292 | P172: 4.596292292 | Q172: 4.596292292 | R172: 4.596292292 | S172: =IF(S171+C172-IF(U171=1,V171,0)>0,S171+C172-IF(U171=1,V171,0),0) -> 534.6018355 | T172: =IF(T171+M172-IF(U171=2,V171,0)>=0,T171+M172-IF(U171=2,V171,0),0) -> 47.03521205 | U172: =IF(S172>$W$101*$V$101,1,IF(T172>$X$101*$Z$101,2,0)) -> 1 | V172: =IF(U172=1,IF(S172>$Y$101,$Y$101,S172),IF(U172=2,IF(T172>$Z$101,$Z$101,T172),0)) -> 0 | W172: =IF(U172=2,IF(W171+V172-X171>0,W171+V172-X171,0),IF(W171-X171>0,W171-X171,0)) -> 0 | X172: 0 | Y172: =IF(U172=1,IF(Y171+V172-G171>0,Y171+V172-G171,0),IF(Y171-G171>0,Y171-G171,0)) -> 0 | Z172: 1 | AB172: 67 | AC172: 0.1015191506 | AD172: 0 | AE172: 0 | AF172: 0 | AG172: 0 | AH172: 0 | AI172: 0
B173: 68 | C173: =SUM(AC1714:AC1737) -> 15.4084256 | D173: 550.0102611 | E173: 0 | F173: 0 | G173: =SUM(AD1714:AD1737) -> 15.4084256 | H173: 1 | I173: =SUM(AE1714:AE1737) -> 4.5 | J173: =SUM(AF1714:AF1737) -> 0 | K173: =SUM(AG1714:AG1737) -> 0 | L173: =SUM(AH1714:AH1737) -> 0 | M173: 4.5 | O173: 4.5 | P173: 4.5 | Q173: 4.5 | R173: 4.5 | S173: 550.0102611 | T173: 51.53521205 | U173: 1 | V173: 0 | W173: 0 | X173: 0 | Y173: 0 | Z173: 1 | AB173: 68 | AC173: 0.007519937081 | AD173: 0 | AE173: 0 | AF173: 0 | AG173: 0 | AH173: 0 | AI173: 0
B174: 69 | C174: =SUM(AC1738:AC1761) -> 12.06405556 | D174: 562.0743166 | E174: 0 | F174: 0 | G174: =SUM(AD1738:AD1761) -> 1.559936301 | H174: 1 | I174: =SUM(AE1738:AE1761) -> 6.004119256 | J174: =SUM(AF1738:AF1761) -> 0 | K174: =SUM(AG1738:AG1761) -> 0 | L174: =SUM(AH1738:AH1761) -> 0 | M174: 6.004119256 | O174: 6.004119256 | P174: 6.004119256 | Q174: 6.004119256 | R174: 6.004119256 | S174: 562.0743166 | T174: 57.5393313 | U174: 1 | V174: 0 | W174: 0 | X174: 0 | Y174: 0 | Z174: 1 | AB174: 69 | AC174: 0 | AD174: 0 | AE174: 0 | AF174: 0 | AG174: 0 | AH174: 0 | AI174: 0
B175: 70 | C175: =SUM(AC1762:AC1785) -> 21.48844889 | D175: 583.5627655 | E175: 0 | F175: 0 | G175: =SUM(AD1762:AD1785) -> 21.48844889 | H175: 1 | I175: =SUM(AE1762:AE1785) -> 0 | J175: =SUM(AF1762:AF1785) -> 0 | K175: =SUM(AG1762:AG1785) -> 0 | L175: =SUM(AH1762:AH1785) -> 0 | M175: 0 | O175: 0 | P175: 0 | Q175: 0 | R175: 0 | S175: 583.5627655 | T175: 57.5393313 | U175: 1 | V175: 0 | W175: 0 | X175: 0 | Y175: 0 | Z175: 1 | AB175: 70 | AC175: 0 | AD175: 0 | AE175: 0 | AF175: 0 | AG175: 0 | AH175: 0 | AI175: 0
B176: 71 | C176: =SUM(AC1786:AC1809) -> 21.30257819 | D176: 604.8653437 | E176: 0 | F176: 0 | G176: =SUM(AD1786:AD1809) -> 19.10525934 | H176: 1 | I176: =SUM(AE1786:AE1809) -> 2.726580671 | J176: =SUM(AF1786:AF1809) -> 0 | K176: =SUM(AG1786:AG1809) -> 0 | L176: =SUM(AH1786:AH1809) -> 0 | M176: 2.726580671 | O176: 2.726580671 | P176: 2.726580671 | Q176: 2.726580671 | R176: 2.726580671 | S176: 604.8653437 | T176: 60.26591197 | U176: 1 | V176: 0 | W176: 0 | X176: 0 | Y176: 0 | Z176: 1 | AB176: 71 | AC176: 0 | AD176: 0 | AE176: 0 | AF176: 0 | AG176: 0 | AH176: 0 | AI176: 0
B177: 72 | C177: =SUM(AC1810:AC1833) -> 21.60320678 | D177: 626.4685505 | E177: 0 | F177: 0 | G177: =SUM(AD1810:AD1833) -> 18.18432282 | H177: 1 | I177: =SUM(AE1810:AE1833) -> 2.889622134 | J177: =SUM(AF1810:AF1833) -> 0 | K177: =SUM(AG1810:AG1833) -> 0 | L177: =SUM(AH1810:AH1833) -> 0 | M177: 2.889622134 | O177: 2.889622134 | P177: 2.889622134 | Q177: 2.889622134 | R177: 2.889622134 | S177: 626.4685505 | T177: 63.15553411 | U177: 1 | V177: 0 | W177: 0 | X177: 0 | Y177: 0 | Z177: 1 | AB177: 72 | AC177: 0 | AD177: 0 | AE177: 0 | AF177: 0 | AG177: 0 | AH177: 0 | AI177: 0
B178: 73 | C178: =SUM(AC1834:AC1857) -> 0 | D178: 626.4685505 | E178: 0 | F178: 0 | G178: =SUM(AD1834:AD1857) -> 0 | H178: 0 | I178: =SUM(AE1834:AE1857) -> 0 | J178: =SUM(AF1834:AF1857) -> 0 | K178: =SUM(AG1834:AG1857) -> 0 | L178: =SUM(AH1834:AH1857) -> 12.5 | M178: 12.5 | O178: 12.5 | P178: 12.5 | Q178: 12.5 | R178: 12 | S178: 626.4685505 | T178: 75.65553411 | U178: 1 | V178: 0 | W178: 0 | X178: 0 | Y178: 0 | Z178: 0 | AB178: 73 | AC178: 0 | AD178: 0 | AE178: 0 | AF178: 0 | AG178: 0 | AH178: 0 | AI178: 0
B179: 74 | C179: =SUM(AC1858:AC1881) -> 0 | D179: 626.4685505 | E179: 0 | F179: 0 | G179: =SUM(AD1858:AD1881) -> 0 | H179: 0 | I179: =SUM(AE1858:AE1881) -> 0 | J179: =SUM(AF1858:AF1881) -> 0 | K179: =SUM(AG1858:AG1881) -> 0 | L179: =SUM(AH1858:AH1881) -> 0 | M179: 0 | O179: 0 | P179: 0 | Q179: 0.5 | R179: 0.5 | S179: 626.4685505 | T179: 75.65553411 | U179: 1 | V179: 0 | W179: 0 | X179: 0 | Y179: 0 | Z179: 0 | AB179: 74 | AC179: 0 | AD179: 0 | AE179: 0 | AF179: 0 | AG179: 0 | AH179: 0 | AI179: 0
B180: 75 | C180: =SUM(AC1882:AC1905) -> 0 | D180: 626.4685505 | E180: 0 | F180: 0 | G180: =SUM(AD1882:AD1905) -> 0 | H180: 0 | I180: =SUM(AE1882:AE1905) -> 0 | J180: =SUM(AF1882:AF1905) -> 0 | K180: =SUM(AG1882:AG1905) -> 0 | L180: =SUM(AH1882:AH1905) -> 0 | M180: 0 | O180: 0 | P180: 0 | Q180: 0 | R180: 0 | S180: 626.4685505 | T180: 75.65553411 | U180: 1 | V180: 0 | W180: 0 | X180: 0 | Y180: 0 | Z180: 0 | AB180: 75 | AC180: 0 | AD180: 0 | AE180: 0 | AF180: 0 | AG180: 0 | AH180: 0 | AI180: 0
B181: 76 | C181: =SUM(AC1906:AC1929) -> 0 | D181: 626.4685505 | E181: 0 | F181: 0 | G181: =SUM(AD1906:AD1929) -> 0 | H181: 0 | I181: =SUM(AE1906:AE1929) -> 0 | J181: =SUM(AF1906:AF1929) -> 0 | K181: =SUM(AG1906:AG1929) -> 0 | L181: =SUM(AH1906:AH1929) -> 0 | M181: 0 | O181: 0 | P181: 0 | Q181: 0 | R181: 0 | S181: 626.4685505 | T181: 75.65553411 | U181: 1 | V181: 0 | W181: 0 | X181: 0 | Y181: 0 | Z181: 0 | AB181: 76 | AC181: 0 | AD181: 0 | AE181: 0 | AF181: 0 | AG181: 0 | AH181: 0 | AI181: 0
B182: 77 | C182: =SUM(AC1930:AC1953) -> 0 | D182: 626.4685505 | E182: 0 | F182: 0 | G182: =SUM(AD1930:AD1953) -> 0 | H182: 0 | I182: =SUM(AE1930:AE1953) -> 0 | J182: =SUM(AF1930:AF1953) -> 0 | K182: =SUM(AG1930:AG1953) -> 0 | L182: =SUM(AH1930:AH1953) -> 0 | M182: 0 | O182: 0 | P182: 0 | Q182: 0 | R182: 0 | S182: 626.4685505 | T182: 75.65553411 | U182: 1 | V182: 0 | W182: 0 | X182: 0 | Y182: 0 | Z182: 0 | AB182: 77 | AC182: 0.07680635243 | AD182: 0 | AE182: 0 | AF182: 0 | AG182: 0 | AH182: 0 | AI182: 0
B183: 78 | C183: =SUM(AC1954:AC1977) -> 0 | D183: 626.4685505 | E183: 0 | F183: 0 | G183: =SUM(AD1954:AD1977) -> 0 | H183: 0 | I183: =SUM(AE1954:AE1977) -> 0 | J183: =SUM(AF1954:AF1977) -> 0 | K183: =SUM(AG1954:AG1977) -> 0 | L183: =SUM(AH1954:AH1977) -> 25 | M183: 25 | O183: 25 | P183: 25 | Q183: 25 | R183: 12 | S183: 626.4685505 | T183: 100.6555341 | U183: 1 | V183: 0 | W183: 0 | X183: 0 | Y183: 0 | Z183: 0 | AB183: 78 | AC183: 0.2304190573 | AD183: 0 | AE183: 0 | AF183: 0 | AG183: 0 | AH183: 0 | AI183: 0
B184: 79 | C184: =SUM(AC1978:AC2001) -> 3.117392651 | D184: 629.5859431 | E184: 0 | F184: 0 | G184: =SUM(AD1978:AD2001) -> 0 | H184: 0 | I184: =SUM(AE1978:AE2001) -> 0 | J184: =SUM(AF1978:AF2001) -> 0 | K184: =SUM(AG1978:AG2001) -> 0 | L184: =SUM(AH1978:AH2001) -> 0 | M184: 0 | O184: 0 | P184: 0 | Q184: 13 | R184: 12 | S184: 629.5859431 | T184: 100.6555341 | U184: 1 | V184: 0 | W184: 0 | X184: 0 | Y184: 0 | Z184: 0 | AB184: 79 | AC184: 0.4331374629 | AD184: 0 | AE184: 0 | AF184: 0 | AG184: 0 | AH184: 0 | AI184: 0
B185: 80 | C185: =SUM(AC2002:AC2025) -> 7.643320439 | D185: 637.2292636 | E185: 0 | F185: 0 | G185: =SUM(AD2002:AD2025) -> 0 | H185: 0 | I185: =SUM(AE2002:AE2025) -> 0 | J185: =SUM(AF2002:AF2025) -> 0 | K185: =SUM(AG2002:AG2025) -> 0 | L185: =SUM(AH2002:AH2025) -> 0 | M185: 0 | O185: 0 | P185: 0 | Q185: 1 | R185: 1 | S185: 637.2292636 | T185: 100.6555341 | U185: 1 | V185: 0 | W185: 0 | X185: 0 | Y185: 0 | Z185: 0 | AB185: 80 | AC185: 0.6396332301 | AD185: 0 | AE185: 0 | AF185: 0 | AG185: 0 | AH185: 0 | AI185: 0
B186: 81 | C186: =SUM(AC2026:AC2049) -> 4.641111204 | D186: 641.8703748 | E186: 0 | F186: 0 | G186: =SUM(AD2026:AD2049) -> 2.901824295 | H186: 1 | I186: =SUM(AE2026:AE2049) -> 0 | J186: =SUM(AF2026:AF2049) -> 0 | K186: =SUM(AG2026:AG2049) -> 0 | L186: =SUM(AH2026:AH2049) -> 0 | M186: 0 | O186: 0 | P186: 0 | Q186: 0 | R186: 0 | S186: 641.8703748 | T186: 100.6555341 | U186: 1 | V186: 0 | W186: 0 | X186: 0 | Y186: 0 | Z186: 1 | AB186: 81 | AC186: 0.7970232965 | AD186: 0 | AE186: 0 | AF186: 0 | AG186: 0 | AH186: 0 | AI186: 0
B187: 82 | C187: =SUM(AC2050:AC2073) -> 7.133452439 | D187: 649.0038272 | E187: 0 | F187: 0 | G187: =SUM(AD2050:AD2073) -> 7.133452439 | H187: 1 | I187: =SUM(AE2050:AE2073) -> 0 | J187: =SUM(AF2050:AF2073) -> 0 | K187: =SUM(AG2050:AG2073) -> 0 | L187: =SUM(AH2050:AH2073) -> 0 | M187: 0 | O187: 0 | P187: 0 | Q187: 0 | R187: 0 | S187: 649.0038272 | T187: 100.6555341 | U187: 1 | V187: 0 | W187: 0 | X187: 0 | Y187: 0 | Z187: 1 | AB187: 82 | AC187: 1.011073787 | AD187: 0.3116606147 | AE187: 0 | AF187: 0 | AG187: 0 | AH187: 0 | AI187: 0
B188: 83 | C188: =SUM(AC2074:AC2097) -> 6.541635124 | D188: 655.5454623 | E188: 0 | F188: 0 | G188: =SUM(AD2074:AD2097) -> 6.541635124 | H188: 1 | I188: =SUM(AE2074:AE2097) -> 0 | J188: =SUM(AF2074:AF2097) -> 0 | K188: =SUM(AG2074:AG2097) -> 0 | L188: =SUM(AH2074:AH2097) -> 0 | M188: 0 | O188: 0 | P188: 0 | Q188: 0 | R188: 0 | S188: 655.5454623 | T188: 100.6555341 | U188: 1 | V188: 0 | W188: 0 | X188: 0 | Y188: 0 | Z188: 1 | AB188: 83 | AC188: 0.9657454478 | AD188: 1.011073787 | AE188: 0 | AF188: 0 | AG188: 0 | AH188: 0 | AI188: 0
B189: 84 | C189: =SUM(AC2098:AC2121) -> 5.045709727 | D189: 660.5911721 | E189: 0 | F189: 0 | G189: =SUM(AD2098:AD2121) -> 5.045709727 | H189: 1 | I189: =SUM(AE2098:AE2121) -> 0 | J189: =SUM(AF2098:AF2121) -> 0 | K189: =SUM(AG2098:AG2121) -> 0 | L189: =SUM(AH2098:AH2121) -> 0 | M189: 0 | O189: 0 | P189: 0 | Q189: 0 | R189: 0 | S189: 660.5911721 | T189: 100.6555341 | U189: 1 | V189: 0 | W189: 0 | X189: 0 | Y189: 0 | Z189: 1 | AB189: 84 | AC189: 0.916639747 | AD189: 0.9657454478 | AE189: 0 | AF189: 0 | AG189: 0 | AH189: 0 | AI189: 0
B190: 85 | C190: =SUM(AC2122:AC2145) -> 4.391444898 | D190: 664.982617 | E190: 0 | F190: 0 | G190: =SUM(AD2122:AD2145) -> 4.391444898 | H190: 1 | I190: =SUM(AE2122:AE2145) -> 0 | J190: =SUM(AF2122:AF2145) -> 0 | K190: =SUM(AG2122:AG2145) -> 0 | L190: =SUM(AH2122:AH2145) -> 0 | M190: 0 | O190: 0 | P190: 0 | Q190: 0 | R190: 0 | S190: 664.982617 | T190: 100.6555341 | U190: 1 | V190: 0 | W190: 0 | X190: 0 | Y190: 0 | Z190: 1 | AB190: 85 | AC190: 0.857461082 | AD190: 0.916639747 | AE190: 0 | AF190: 0 | AG190: 0 | AH190: 0 | AI190: 0
B191: 86 | C191: =SUM(AC2146:AC2169) -> 3.119049801 | D191: 668.1016668 | E191: 0 | F191: 0 | G191: =SUM(AD2146:AD2169) -> 1.419049801 | H191: 1 | I191: =SUM(AE2146:AE2169) -> 0 | J191: =SUM(AF2146:AF2169) -> 0 | K191: =SUM(AG2146:AG2169) -> 1.7 | L191: =SUM(AH2146:AH2169) -> 0 | M191: 1.7 | O191: 1.7 | P191: 1.7 | Q191: 1.7 | R191: 1.7 | S191: 668.1016668 | T191: 102.3555341 | U191: 1 | V191: 0 | W191: 0 | X191: 0 | Y191: 0 | Z191: 1 | AB191: 86 | AC191: 0.6925162924 | AD191: 0.857461082 | AE191: 0 | AF191: 0 | AG191: 0 | AH191: 0 | AI191: 0
B192: 87 | C192: =SUM(AC2170:AC2193) -> 4.915398105 | D192: 673.0170649 | E192: 0 | F192: 0 | G192: =SUM(AD2170:AD2193) -> 4.915398105 | H192: 1 | I192: =SUM(AE2170:AE2193) -> 0 | J192: =SUM(AF2170:AF2193) -> 0 | K192: =SUM(AG2170:AG2193) -> 0 | L192: =SUM(AH2170:AH2193) -> 0 | M192: 0 | O192: 0 | P192: 0 | Q192: 0 | R192: 0 | S192: 673.0170649 | T192: 102.3555341 | U192: 1 | V192: 0 | W192: 0 | X192: 0 | Y192: 0 | Z192: 1 | AB192: 87 | AC192: 0.3777361595 | AD192: 0.6925162924 | AE192: 0 | AF192: 0 | AG192: 0 | AH192: 0 | AI192: 0
B193: 88 | C193: =SUM(AC2194:AC2217) -> 7.366221344 | D193: 680.3832862 | E193: 0 | F193: 0 | G193: =SUM(AD2194:AD2217) -> 7.366221344 | H193: 1 | I193: =SUM(AE2194:AE2217) -> 0 | J193: =SUM(AF2194:AF2217) -> 0 | K193: =SUM(AG2194:AG2217) -> 0 | L193: =SUM(AH2194:AH2217) -> 0 | M193: 0 | O193: 0 | P193: 0 | Q193: 0 | R193: 0 | S193: 680.3832862 | T193: 102.3555341 | U193: 1 | V193: 0 | W193: 0 | X193: 0 | Y193: 0 | Z193: 1 | AB193: 88 | AC193: 0.2870794812 | AD193: 0.3777361595 | AE193: 0 | AF193: 0 | AG193: 0 | AH193: 0 | AI193: 0
B194: 89 | C194: =SUM(AC2218:AC2241) -> 8.066853397 | D194: 688.4501396 | E194: 0 | F194: 0 | G194: =SUM(AD2218:AD2241) -> 8.066853397 | H194: 1 | I194: =SUM(AE2218:AE2241) -> 0 | J194: =SUM(AF2218:AF2241) -> 0 | K194: =SUM(AG2218:AG2241) -> 0 | L194: =SUM(AH2218:AH2241) -> 0 | M194: 0 | O194: 0 | P194: 0 | Q194: 0 | R194: 0 | S194: 688.4501396 | T194: 102.3555341 | U194: 1 | V194: 0 | W194: 0 | X194: 0 | Y194: 0 | Z194: 1 | AB194: 89 | AC194: 0.2870794812 | AD194: 0.2870794812 | AE194: 0 | AF194: 0 | AG194: 0 | AH194: 0 | AI194: 0
B195: 90 | C195: =SUM(AC2242:AC2265) -> 5.389826818 | D195: 693.8399664 | E195: 0 | F195: 0 | G195: =SUM(AD2242:AD2265) -> 5.389826818 | H195: 1 | I195: =SUM(AE2242:AE2265) -> 0 | J195: =SUM(AF2242:AF2265) -> 0 | K195: =SUM(AG2242:AG2265) -> 0 | L195: =SUM(AH2242:AH2265) -> 0 | M195: 0 | O195: 0 | P195: 0 | Q195: 0 | R195: 0 | S195: 693.8399664 | T195: 102.3555341 | U195: 1 | V195: 0 | W195: 0 | X195: 0 | Y195: 0 | Z195: 1 | AB195: 90 | AC195: 0.1787951155 | AD195: 0.2870794812 | AE195: 0 | AF195: 0 | AG195: 0 | AH195: 0 | AI195: 0
B196: 91 | C196: =SUM(AC2266:AC2289) -> 8.332933138 | D196: 702.1728996 | E196: 0 | F196: 0 | G196: =SUM(AD2266:AD2289) -> 8.332933138 | H196: 1 | I196: =SUM(AE2266:AE2289) -> 0 | J196: =SUM(AF2266:AF2289) -> 0 | K196: =SUM(AG2266:AG2289) -> 0 | L196: =SUM(AH2266:AH2289) -> 0 | M196: 0 | O196: 0 | P196: 0 | Q196: 0 | R196: 0 | S196: 702.1728996 | T196: 102.3555341 | U196: 1 | V196: 0 | W196: 0 | X196: 0 | Y196: 0 | Z196: 1 | AB196: 91 | AC196: 0.05917866499 | AD196: 0.1787951155 | AE196: 0 | AF196: 0 | AG196: 0 | AH196: 0 | AI196: 0
B197: 92 | C197: =SUM(AC2290:AC2313) -> 5.00594341 | D197: 707.178843 | E197: 0 | F197: 0 | G197: =SUM(AD2290:AD2313) -> 5.00594341 | H197: 1 | I197: =SUM(AE2290:AE2313) -> 0 | J197: =SUM(AF2290:AF2313) -> 0 | K197: =SUM(AG2290:AG2313) -> 0 | L197: =SUM(AH2290:AH2313) -> 0 | M197: 0 | O197: 0 | P197: 0 | Q197: 0 | R197: 0 | S197: 707.178843 | T197: 102.3555341 | U197: 1 | V197: 0 | W197: 0 | X197: 0 | Y197: 0 | Z197: 1 | AB197: 92 | AC197: 0.003777361595 | AD197: 0.05917866499 | AE197: 0 | AF197: 0 | AG197: 0 | AH197: 0 | AI197: 0
B198: 93 | C198: =SUM(AC2314:AC2337) -> 4.709671123 | D198: 711.8885141 | E198: 0 | F198: 0 | G198: =SUM(AD2314:AD2337) -> 4.709671123 | H198: 1 | I198: =SUM(AE2314:AE2337) -> 0 | J198: =SUM(AF2314:AF2337) -> 0 | K198: =SUM(AG2314:AG2337) -> 0 | L198: =SUM(AH2314:AH2337) -> 0 | M198: 0 | O198: 0 | P198: 0 | Q198: 0 | R198: 0 | S198: 711.8885141 | T198: 102.3555341 | U198: 1 | V198: 0 | W198: 0 | X198: 0 | Y198: 0 | Z198: 1 | AB198: 93 | AC198: 0 | AD198: 0.003777361595 | AE198: 0 | AF198: 0 | AG198: 0 | AH198: 0 | AI198: 0
B199: 94 | C199: =SUM(AC2338:AC2361) -> 6.538254353 | D199: 718.4267684 | E199: 0 | F199: 0 | G199: =SUM(AD2338:AD2361) -> 6.538254353 | H199: 1 | I199: =SUM(AE2338:AE2361) -> 0 | J199: =SUM(AF2338:AF2361) -> 0 | K199: =SUM(AG2338:AG2361) -> 0 | L199: =SUM(AH2338:AH2361) -> 0 | M199: 0 | O199: 0 | P199: 0 | Q199: 0 | R199: 0 | S199: 718.4267684 | T199: 102.3555341 | U199: 1 | V199: 0 | W199: 0 | X199: 0 | Y199: 0 | Z199: 1 | AB199: 94 | AC199: 0 | AD199: 0 | AE199: 0 | AF199: 0 | AG199: 0 | AH199: 0 | AI199: 0
B200: 95 | C200: =SUM(AC2362:AC2385) -> 6.857421189 | D200: 725.2841896 | E200: 0 | F200: 0 | G200: =SUM(AD2362:AD2385) -> 6.857421189 | H200: 1 | I200: =SUM(AE2362:AE2385) -> 0 | J200: =SUM(AF2362:AF2385) -> 0 | K200: =SUM(AG2362:AG2385) -> 0 | L200: =SUM(AH2362:AH2385) -> 0 | M200: 0 | O200: 0 | P200: 0 | Q200: 0 | R200: 0 | S200: 725.2841896 | T200: 102.3555341 | U200: 1 | V200: 0 | W200: 0 | X200: 0 | Y200: 0 | Z200: 1 | AB200: 95 | AC200: 0 | AD200: 0 | AE200: 0 | AF200: 0 | AG200: 0 | AH200: 0 | AI200: 0
B201: 96 | C201: =SUM(AC2386:AC2409) -> 6.595930894 | D201: 731.8801205 | E201: 0 | F201: 0 | G201: =SUM(AD2386:AD2409) -> 6.595930894 | H201: 1 | I201: =SUM(AE2386:AE2409) -> 0 | J201: =SUM(AF2386:AF2409) -> 0 | K201: =SUM(AG2386:AG2409) -> 0 | L201: =SUM(AH2386:AH2409) -> 0 | M201: 0 | O201: 0 | P201: 0 | Q201: 0 | R201: 0 | S201: 731.8801205 | T201: 102.3555341 | U201: 1 | V201: 0 | W201: 0 | X201: 0 | Y201: 0 | Z201: 1 | AB201: 96 | AC201: 0 | AD201: 0 | AE201: 0 | AF201: 0 | AG201: 0 | AH201: 0 | AI201: 0
B202: 97 | C202: =SUM(AC2410:AC2433) -> 7.894898694 | D202: 739.7750192 | E202: 0 | F202: 0 | G202: =SUM(AD2410:AD2433) -> 7.894898694 | H202: 1 | I202: =SUM(AE2410:AE2433) -> 0 | J202: =SUM(AF2410:AF2433) -> 0 | K202: =SUM(AG2410:AG2433) -> 0 | L202: =SUM(AH2410:AH2433) -> 0 | M202: 0 | O202: 0 | P202: 0 | Q202: 0 | R202: 0 | S202: 739.7750192 | T202: 102.3555341 | U202: 1 | V202: 0 | W202: 0 | X202: 0 | Y202: 0 | Z202: 1 | AB202: 97 | AC202: 0 | AD202: 0 | AE202: 0 | AF202: 0 | AG202: 0 | AH202: 0 | AI202: 0
B203: 98 | C203: =SUM(AC2434:AC2457) -> 7.174026293 | D203: 746.9490455 | E203: 0 | F203: 0 | G203: =SUM(AD2434:AD2457) -> 7.174026293 | H203: 1 | I203: =SUM(AE2434:AE2457) -> 0 | J203: =SUM(AF2434:AF2457) -> 0 | K203: =SUM(AG2434:AG2457) -> 0 | L203: =SUM(AH2434:AH2457) -> 0 | M203: 0 | O203: 0 | P203: 0 | Q203: 0 | R203: 0 | S203: 746.9490455 | T203: 102.3555341 | U203: 1 | V203: 0 | W203: 0 | X203: 0 | Y203: 0 | Z203: 1 | AB203: 98 | AC203: 0 | AD203: 0 | AE203: 0 | AF203: 0 | AG203: 0 | AH203: 0 | AI203: 0
B204: 99 | C204: =SUM(AC2458:AC2481) -> 6.51500703 | D204: 753.4640525 | E204: 0 | F204: 0 | G204: =SUM(AD2458:AD2481) -> 6.51500703 | H204: 1 | I204: =SUM(AE2458:AE2481) -> 0 | J204: =SUM(AF2458:AF2481) -> 0 | K204: =SUM(AG2458:AG2481) -> 0 | L204: =SUM(AH2458:AH2481) -> 0 | M204: 0 | O204: 0 | P204: 0 | Q204: 0 | R204: 0 | S204: 753.4640525 | T204: 102.3555341 | U204: 1 | V204: 0 | W204: 0 | X204: 0 | Y204: 0 | Z204: 1 | AB204: 99 | AC204: 0 | AD204: 0 | AE204: 0 | AF204: 0 | AG204: 0 | AH204: 0 | AI204: 0
B205: 100 | C205: =SUM(AC2482:AC2505) -> 5.46995339 | D205: 758.9340059 | E205: 0 | F205: 0 | G205: =SUM(AD2482:AD2505) -> 5.46995339 | H205: 1 | I205: =SUM(AE2482:AE2505) -> 0 | J205: =SUM(AF2482:AF2505) -> 0 | K205: =SUM(AG2482:AG2505) -> 0 | L205: =SUM(AH2482:AH2505) -> 0 | M205: 0 | O205: 0 | P205: 0 | Q205: 0 | R205: 0 | S205: 758.9340059 | T205: 102.3555341 | U205: 1 | V205: 0 | W205: 0 | X205: 0 | Y205: 0 | Z205: 1 | AB205: 100 | AC205: 0 | AD205: 0 | AE205: 0 | AF205: 0 | AG205: 0 | AH205: 0 | AI205: 0
B206: 101 | C206: =SUM(AC2506:AC2529) -> 6.700824697 | D206: 765.6348306 | E206: 0 | F206: 0 | G206: =SUM(AD2506:AD2529) -> 6.700824697 | H206: 1 | I206: =SUM(AE2506:AE2529) -> 0 | J206: =SUM(AF2506:AF2529) -> 0 | K206: =SUM(AG2506:AG2529) -> 0 | L206: =SUM(AH2506:AH2529) -> 0 | M206: 0 | O206: 0 | P206: 0 | Q206: 0 | R206: 0 | S206: 765.6348306 | T206: 102.3555341 | U206: 1 | V206: 0 | W206: 0 | X206: 0 | Y206: 0 | Z206: 1 | AB206: 101 | AC206: 0.02769670614 | AD206: 0 | AE206: 0 | AF206: 0 | AG206: 0 | AH206: 0 | AI206: 0
B207: 102 | C207: =SUM(AC2530:AC2553) -> 6.33045752 | D207: 771.9652882 | E207: 0 | F207: 0 | G207: =SUM(AD2530:AD2553) -> 6.33045752 | H207: 1 | I207: =SUM(AE2530:AE2553) -> 0 | J207: =SUM(AF2530:AF2553) -> 0 | K207: =SUM(AG2530:AG2553) -> 0 | L207: =SUM(AH2530:AH2553) -> 0 | M207: 0 | O207: 0 | P207: 0 | Q207: 0 | R207: 0 | S207: 771.9652882 | T207: 102.3555341 | U207: 1 | V207: 0 | W207: 0 | X207: 0 | Y207: 0 | Z207: 1 | AB207: 102 | AC207: 0.153590825 | AD207: 0.02769670614 | AE207: 0 | AF207: 0 | AG207: 0 | AH207: 0 | AI207: 0
B208: 103 | C208: =SUM(AC2554:AC2577) -> 5.72621067 | D208: 777.6914988 | E208: 0 | F208: 0 | G208: =SUM(AD2554:AD2577) -> 5.72621067 | H208: 1 | I208: =SUM(AE2554:AE2577) -> 0 | J208: =SUM(AF2554:AF2577) -> 0 | K208: =SUM(AG2554:AG2577) -> 0 | L208: =SUM(AH2554:AH2577) -> 0 | M208: 0 | O208: 0 | P208: 0 | Q208: 0 | R208: 0 | S208: 777.6914988 | T208: 102.3555341 | U208: 1 | V208: 0 | W208: 0 | X208: 0 | Y208: 0 | Z208: 1 | AB208: 103 | AC208: 0.1963948253 | AD208: 0.153590825 | AE208: 0 | AF208: 0 | AG208: 0 | AH208: 0 | AI208: 0
B209: 104 | C209: =SUM(AC2578:AC2601) -> 4.681420676 | D209: 782.3729195 | E209: 0 | F209: 0 | G209: =SUM(AD2578:AD2601) -> 4.681420676 | H209: 1 | I209: =SUM(AE2578:AE2601) -> 0 | J209: =SUM(AF2578:AF2601) -> 0 | K209: =SUM(AG2578:AG2601) -> 0 | L209: =SUM(AH2578:AH2601) -> 0 | M209: 0 | O209: 0 | P209: 0 | Q209: 0 | R209: 0 | S209: 782.3729195 | T209: 102.3555341 | U209: 1 | V209: 0 | W209: 0 | X209: 0 | Y209: 0 | Z209: 1 | AB209: 104 | AC209: 0.2417167081 | AD209: 0.1963948253 | AE209: 0 | AF209: 0 | AG209: 0 | AH209: 0 | AI209: 0
B210: 105 | C210: =SUM(AC2602:AC2625) -> 4.125156312 | D210: 786.4980758 | E210: 0 | F210: 0 | G210: =SUM(AD2602:AD2625) -> 4.125156312 | H210: 1 | I210: =SUM(AE2602:AE2625) -> 0 | J210: =SUM(AF2602:AF2625) -> 0 | K210: =SUM(AG2602:AG2625) -> 0 | L210: =SUM(AH2602:AH2625) -> 0 | M210: 0 | O210: 0 | P210: 0 | Q210: 0 | R210: 0 | S210: 786.4980758 | T210: 102.3555341 | U210: 1 | V210: 0 | W210: 0 | X210: 0 | Y210: 0 | Z210: 1 | AB210: 105 | AC210: 0.3915307095 | AD210: 0.2417167081 | AE210: 0 | AF210: 0 | AG210: 0 | AH210: 0 | AI210: 0
B211: 106 | C211: =SUM(AC2626:AC2649) -> 7.324650544 | D211: 793.8227264 | E211: 0 | F211: 0 | G211: =SUM(AD2626:AD2649) -> 7.324650544 | H211: 1 | I211: =SUM(AE2626:AE2649) -> 0 | J211: =SUM(AF2626:AF2649) -> 0 | K211: =SUM(AG2626:AG2649) -> 0 | L211: =SUM(AH2626:AH2649) -> 0 | M211: 0 | O211: 0 | P211: 0 | Q211: 0 | R211: 0 | S211: 793.8227264 | T211: 102.3555341 | U211: 1 | V211: 0 | W211: 0 | X211: 0 | Y211: 0 | Z211: 1 | AB211: 106 | AC211: 0.8850356552 | AD211: 0.3915307095 | AE211: 0 | AF211: 0 | AG211: 0 | AH211: 0 | AI211: 0
B212: 107 | C212: =SUM(AC2650:AC2673) -> 5.146983961 | D212: 798.9697103 | E212: 0 | F212: 0 | G212: =SUM(AD2650:AD2673) -> 5.146983961 | H212: 1 | I212: =SUM(AE2650:AE2673) -> 0 | J212: =SUM(AF2650:AF2673) -> 0 | K212: =SUM(AG2650:AG2673) -> 0 | L212: =SUM(AH2650:AH2673) -> 0 | M212: 0 | O212: 0 | P212: 0 | Q212: 0 | R212: 0 | S212: 798.9697103 | T212: 102.3555341 | U212: 1 | V212: 0 | W212: 0 | X212: 0 | Y212: 0 | Z212: 1 | AB212: 107 | AC212: 0.6999713006 | AD212: 0.8850356552 | AE212: 0 | AF212: 0 | AG212: 0 | AH212: 0 | AI212: 0
B213: 108 | C213: =SUM(AC2674:AC2697) -> 7.390448859 | D213: 806.3601592 | E213: 0 | F213: 0 | G213: =SUM(AD2674:AD2697) -> 7.390448859 | H213: 1 | I213: =SUM(AE2674:AE2697) -> 0 | J213: =SUM(AF2674:AF2697) -> 0 | K213: =SUM(AG2674:AG2697) -> 0 | L213: =SUM(AH2674:AH2697) -> 0 | M213: 0 | O213: 0 | P213: 0 | Q213: 0 | R213: 0 | S213: 806.3601592 | T213: 102.3555341 | U213: 1 | V213: 0 | W213: 0 | X213: 0 | Y213: 0 | Z213: 1 | AB213: 108 | AC213: 0.9995993034 | AD213: 0.6999713006 | AE213: 0 | AF213: 0 | AG213: 0 | AH213: 0 | AI213: 0
B214: 109 | C214: =SUM(AC2698:AC2721) -> 5.326329836 | D214: 811.686489 | E214: 0 | F214: 0 | G214: =SUM(AD2698:AD2721) -> 5.326329836 | H214: 1 | I214: =SUM(AE2698:AE2721) -> 0 | J214: =SUM(AF2698:AF2721) -> 0 | K214: =SUM(AG2698:AG2721) -> 0 | L214: =SUM(AH2698:AH2721) -> 0 | M214: 0 | O214: 0 | P214: 0 | Q214: 0 | R214: 0 | S214: 811.686489 | T214: 102.3555341 | U214: 1 | V214: 0 | W214: 0 | X214: 0 | Y214: 0 | Z214: 1 | AB214: 109 | AC214: 0.615622241 | AD214: 0.9995993034 | AE214: 0 | AF214: 0 | AG214: 0 | AH214: 0 | AI214: 0
B215: 110 | C215: =SUM(AC2722:AC2745) -> 3.88174359 | D215: 815.5682326 | E215: 0 | F215: 0 | G215: =SUM(AD2722:AD2745) -> 3.88174359 | H215: 1 | I215: =SUM(AE2722:AE2745) -> 0 | J215: =SUM(AF2722:AF2745) -> 0 | K215: =SUM(AG2722:AG2745) -> 0 | L215: =SUM(AH2722:AH2745) -> 0 | M215: 0 | O215: 0 | P215: 0 | Q215: 0 | R215: 0 | S215: 815.5682326 | T215: 102.3555341 | U215: 1 | V215: 0 | W215: 0 | X215: 0 | Y215: 0 | Z215: 1 | AB215: 110 | AC215: 0.05539341228 | AD215: 0.615622241 | AE215: 0 | AF215: 0 | AG215: 0 | AH215: 0 | AI215: 0
B216: 111 | C216: =SUM(AC2746:AC2769) -> 7.699968894 | D216: 823.2682015 | E216: 0 | F216: 0 | G216: =SUM(AD2746:AD2769) -> 5.999968894 | H216: 1 | I216: =SUM(AE2746:AE2769) -> 0 | J216: =SUM(AF2746:AF2769) -> 0 | K216: =SUM(AG2746:AG2769) -> 1.7 | L216: =SUM(AH2746:AH2769) -> 0 | M216: 1.7 | O216: 1.7 | P216: 1.7 | Q216: 1.7 | R216: 1.7 | S216: 823.2682015 | T216: 104.0555341 | U216: 1 | V216: 0 | W216: 0 | X216: 0 | Y216: 0 | Z216: 1 | AB216: 111 | AC216: 0.1082689422 | AD216: 0.05539341228 | AE216: 0 | AF216: 0 | AG216: 0 | AH216: 0 | AI216: 0
B217: 112 | C217: =SUM(AC2770:AC2793) -> 3.823915329 | D217: 827.0921168 | E217: 0 | F217: 0 | G217: =SUM(AD2770:AD2793) -> 3.823915329 | H217: 1 | I217: =SUM(AE2770:AE2793) -> 0 | J217: =SUM(AF2770:AF2793) -> 0 | K217: =SUM(AG2770:AG2793) -> 0 | L217: =SUM(AH2770:AH2793) -> 0 | M217: 0 | O217: 0 | P217: 0 | Q217: 0 | R217: 0 | S217: 827.0921168 | T217: 104.0555341 | U217: 1 | V217: 0 | W217: 0 | X217: 0 | Y217: 0 | Z217: 1 | AB217: 112 | AC217: 0.1044921186 | AD217: 0.1082689422 | AE217: 0 | AF217: 0 | AG217: 0 | AH217: 0 | AI217: 0
... 2033 more rows

Sheet Resultat (hidden)
C2: Scenario 1 Zuivering with buffer
B3: stromen
B4: Piek Zuivering behandeling | D4: m3/uur | E4: 12.54046986
B5: Total hergebruik | D5: m3 | E5: 7020
B6: Totale lozing | D6: m3 | E6: 218
B7: beste oplossing per bedrijf
B8: leverancier | E8: Waterson | G8: Agrozone | I8: Enthoven Techniek | K8: HortiMaX | M8: WaterIQ | O8: Priva | Q8: WaterQ
B9: techniek | E9: H2O2 + UV | G9: Ozone | I9: H2O2 + UV | K9: H2O2 + UV | M9: H2O2+ozon+ katalysator | O9: H2O2 + UV | Q9: H2O2 + UV
B10: Zuivering capaciteit | D10: m3/uur | G10: 0.7 | I10: 0.53 | K10: 0.4 | M10: 0.48 | O10: 1.25 | Q10: 0.75
B11: Ontsmetting capaciteit | G11: n.v.t. | I11: n.v.t. | K11: n.v.t. | M11: n.v.t. | O11: n.v.t. | Q11: n.v.t.
B12: Nodige zuivering buffer | D12: m3 | E12: 150 | G12: 0 | I12: 0 | K12: 25 | M12: 25 | O12: 0 | Q12: 0
B13: Nodige ontsmetting buffer | G13: n.v.t. | I13: n.v.t. | K13: n.v.t. | M13: n.v.t. | O13: n.v.t. | Q13: n.v.t.
B14: Eenmalige prijs te betalen | D14: k€ | G14: 25.995 | I14: 17.9 | K14: 17.65 | M14: 22.9 | Q14: 19.725
B15: jaarlijkse kosten
B16: Afschrijving | D16: € | G16: 2599.5 | I16: 1790 | K16: 1765 | M16: 2290 | O16: - | Q16: 1972.5
B17: Rente | D17: € | G17: 233.955 | I17: 161.1 | K17: 158.85 | M17: 206.1 | O17: 0 | Q17: 177.525
B18: Elektriciteit | D18: € | E18: 58.315 | G18: 590.1478 | I18: 653.128 | K18: 723.106 | M18: 163.282 | O18: 2379.252 | Q18: 349.89
B19: Producten | D19: € | G19: 0 | I19: 13.08 | K19: 63.22 | M19: 183.12 | O19: 39.24 | Q19: 28.34
B20: Onderhoud | D20: € | G20: 1050 | I20: 1190 | K20: 200 | M20: 1000 | O20: 47.96 | Q20: 1308
B21: Totaal per jaar | D21: € | E21: 3158.215 | G21: 4473.6028 | I21: 3807.308 | K21: 2910.176 | M21: 3842.502 | O21: 2466.452 | Q21: 3836.255
C22: Without buffer
B23: leverancier | E23: Waterson | G23: Agrozone | I23: Enthoven Techniek | K23: HortiMaX | M23: WaterIQ | O23: Priva | Q23: WaterQ
B24: techniek | E24: H2O2 + UV | G24: Ozone | I24: H2O2 + UV | K24: H2O2 + UV | M24: H2O2+ozon+ katalysator | O24: H2O2 + UV | Q24: H2O2 + UV
B25: Zuivering capaciteit | D25: m3/uur | G25: Maatwerk nodig | I25: Maatwerk nodig | K25: Maatwerk nodig | M25: 20 | O25: Maatwerk nodig | Q25: Maatwerk nodig
B26: Ontsmetting capaciteit | M26: n.v.t.
B27: Nodige zuivering buffer | D27: m3 | E27: 150 | G27: bij deze | I27: bij deze | K27: bij deze | M27: 0 | O27: bij deze | Q27: bij deze
B28: Nodige ontsmetting buffer | M28: n.v.t.
B29: Eenmalige prijs te betalen | D29: k€ | G29: leverancier | I29: leverancier | K29: leverancier | M29: 179 | O29: leverancier | Q29: leverancier
B30: jaarlijkse kosten
B31: Afschrijving | D31: € | M31: 17900
B32: Rente | D32: € | M32: 1611
B33: Elektriciteit | D33: € | E33: 58.315 | M33: 34.989
B34: Producten | D34: € | M34: 183.12
B35: Onderhoud | D35: € | M35: 3500
B36: Totaal per jaar | D36: € | E36: 3158.215 | G36: 0 | I36: 0 | K36: 0 | M36: 23229.109 | O36: 0 | Q36: 0
C37: Conbi
B38: Piek Zuivering behandeling | D38: m3/uur | E38: 12.54046986
B39: Total hergebruik | D39: m3 | E39: 7020
B40: Totale lozing | D40: m3 | E40: 218
B41: beste oplossing per bedrijf
B42: leverancier | E42: Waterson | G42: Agrozone | I42: Enthoven Techniek | K42: HortiMaX | M42: WaterIQ | O42: Priva | Q42: WaterQ
B43: techniek | E43: H2O2 + UV | G43: Ozone | I43: H2O2 + UV | K43: H2O2 + UV | M43: H2O2+ozon+ katalysator | O43: H2O2 + UV | Q43: H2O2 + UV
B44: Zuivering capaciteit | D44: m3/uur | G44: 1.2 | I44: 1.05 | K44: Maatwerk nodig | M44: 0.6 | O44: Maatwerk nodig | Q44: Maatwerk nodig
B45: Ontsmetting capaciteit | G45: 4.8 | I45: 4.5 | M45: 2.5
B46: Nodige zuivering buffer | D46: m3 | E46: 60 | G46: 0 | I46: 0 | K46: bij deze | M46: 0 | O46: bij deze | Q46: bij deze
B47: Nodige ontsmetting buffer | G47: 0 | I47: 0 | M47: 0
B48: Eenmalige prijs te betalen | D48: k€ | G48: 45.235 | I48: 40.655 | K48: leverancier | M48: 33.855 | O48: leverancier | Q48: leverancier
B49: jaarlijkse kosten
B50: Afschrijving | D50: € | G50: 4523.5 | I50: 4065.5 | M50: 3385.5
B51: Rente | D51: € | G51: 407.115 | I51: 365.895 | M51: 304.695
B52: Elektriciteit | D52: € | E52: 3.21 | G52: 4222.22 | I52: 8117.876 | M52: 2618.718
B53: Producten | D53: € | G53: 0 | I53: 434.28 | M53: 393.72
B54: Onderhoud | D54: € | G54: 1500 | I54: 1479 | M54: 1200
B55: Totaal per jaar | D55: € | G55: 10652.835 | I55: 14462.551 | K55: 0 | M55: 7902.633 | O55: 0 | Q55: 0
C56: Crop with buffer and Priva
B57: Piek Zuivering behandeling | D57: m3/uur | E57: 13.04808704
B58: Total hergebruik | D58: m3 | E58: 6968
B59: Totale lozing | D59: m3 | E59: 12
B60: beste oplossing per bedrijf
B61: leverancier | E61: Waterson | G61: Agrozone | I61: Enthoven Techniek | K61: HortiMaX | M61: WaterIQ | O61: Priva | Q61: WaterQ
B62: techniek | E62: H2O2 + UV | G62: Ozone | I62: H2O2 + UV | K62: H2O2 + UV | M62: H2O2+ozon+ katalysator | O62: H2O2 + UV | Q62: H2O2 + UV
B63: Zuivering capaciteit | D63: m3/uur | G63: 0.7 | I63: 0.53 | K63: 0.4 | M63: 0.48 | O63: 3 | Q63: 0.75
B64: Ontsmetting capaciteit | G64: n.v.t. | I64: n.v.t. | K64: n.v.t. | M64: n.v.t. | O64: n.v.t. | Q64: n.v.t.
B65: Nodige zuivering buffer | D65: m3 | E65: 60 | G65: 0 | I65: 25 | K65: 25 | M65: 25 | O65: 0 | Q65: 0
B66: Nodige ontsmetting buffer | G66: n.v.t. | I66: n.v.t. | K66: n.v.t. | M66: n.v.t. | O66: n.v.t. | Q66: n.v.t.
B67: Eenmalige prijs te betalen | D67: k€ | G67: 25.995 | I67: 21.3 | K67: 17.65 | M67: 22.9 | O67: 9.8 | Q67: 19.725
B68: jaarlijkse kosten
B69: Afschrijving | D69: € | G69: 2599.5 | I69: 2130 | K69: 1765 | M69: 2290 | O69: 980 | Q69: 1972.5
B70: Rente | D70: € | G70: 233.955 | I70: 191.7 | K70: 158.85 | M70: 206.1 | O70: 88.2 | Q70: 177.525
B71: Elektriciteit | D71: € | E71: 3.21 | G71: 32.4852 | I71: 35.952 | K71: 39.804 | M71: 8.988 | O71: 33.384 | Q71: 19.26
B72: Producten | D72: € | G72: 0 | I72: 0.72 | K72: 3.48 | M72: 10.08 | O72: 4.8 | Q72: 1.56
B73: Onderhoud | D73: € | G73: 1050 | I73: 1190 | K73: 200 | M73: 1000 | O73: 1.2 | Q73: 1308
B74: Totaal per jaar | D74: € | E74: 691.41 | G74: 3915.9402 | I74: 3548.372 | K74: 2167.134 | M74: 3515.168 | O74: 1107.584 | Q74: 3478.845
C75: without buffer
B76: Piek Zuivering behandeling | D76: m3/uur | E76: 13.04808704
B77: Total hergebruik | D77: m3 | E77: 6968
B78: Totale lozing | D78: m3 | E78: 12
B79: beste oplossing per bedrijf
B80: leverancier | E80: Waterson | G80: Agrozone | I80: Enthoven Techniek | K80: HortiMaX | M80: WaterIQ | O80: Priva | Q80: WaterQ
B81: techniek | E81: H2O2 + UV | G81: Ozone | I81: H2O2 + UV | K81: H2O2 + UV | M81: H2O2+ozon+ katalysator | O81: H2O2 + UV | Q81: H2O2 + UV
B82: Zuivering capaciteit | D82: m3/uur | G82: Maatwerk nodig | I82: Maatwerk nodig | K82: Maatwerk nodig | M82: 20 | O82: Maatwerk nodig | Q82: Maatwerk nodig
B83: Ontsmetting capaciteit | M83: n.v.t.
B84: Nodige zuivering buffer | D84: m3 | E84: 60 | G84: bij deze | I84: bij deze | K84: bij deze | M84: 0 | O84: bij deze | Q84: bij deze
B85: Nodige ontsmetting buffer | M85: n.v.t.
B86: Eenmalige prijs te betalen | D86: k€ | G86: leverancier | I86: leverancier | K86: leverancier | M86: 179 | O86: leverancier | Q86: leverancier
B87: jaarlijkse kosten
B88: Afschrijving | D88: € | M88: 17900
B89: Rente | D89: € | M89: 1611
B90: Elektriciteit | D90: € | E90: 3.21 | M90: 1.926
B91: Producten | D91: € | M91: 10.08
B92: Onderhoud | D92: € | M92: 3500
B93: Totaal per jaar | D93: € | E93: 691.41 | G93: 0 | I93: 0 | K93: 0 | M93: 23023.006 | O93: 0 | Q93: 0
C94: Conmbinatie
B95: Piek Zuivering behandeling | D95: m3/uur | E95: 13.04808704
B96: Total hergebruik | D96: m3 | E96: 6968
B97: Totale lozing | D97: m3 | E97: 12
B98: beste oplossing per bedrijf
B99: leverancier | E99: Waterson | G99: Agrozone | I99: Enthoven Techniek | K99: HortiMaX | M99: WaterIQ | O99: Priva | Q99: WaterQ
B100: techniek | E100: H2O2 + UV | G100: Ozone | I100: H2O2 + UV | K100: H2O2 + UV | M100: H2O2+ozon+ katalysator | O100: H2O2 + UV | Q100: H2O2 + UV
B101: Zuivering capaciteit | D101: m3/uur | G101: 1.2 | I101: 1.05 | K101: Maatwerk nodig | M101: 0.6 | O101: Maatwerk nodig | Q101: Maatwerk nodig
B102: Ontsmetting capaciteit | G102: 4.8 | I102: 4.5 | M102: 2.5
B103: Nodige zuivering buffer | D103: m3 | E103: 60 | G103: 0 | I103: 0 | K103: bij deze | M103: 0 | O103: bij deze | Q103: bij deze
B104: Nodige ontsmetting buffer | G104: 0 | I104: 0 | M104: 0
B105: Eenmalige prijs te betalen | D105: k€ | G105: 36.355 | I105: 31.775 | K105: leverancier | M105: 24.975 | O105: leverancier | Q105: leverancier
B106: jaarlijkse kosten
B107: Afschrijving | D107: € | G107: 3635.5 | I107: 3177.5 | M107: 2497.5
B108: Rente | D108: € | G108: 327.195 | I108: 285.975 | M108: 224.775
B109: Elektriciteit | D109: € | E109: 3.21 | G109: 3753.56 | I109: 7489.144 | M109: 2468.1048
B110: Producten | D110: € | G110: 0 | I110: 418.8 | M110: 219.12
B111: Onderhoud | D111: € | G111: 1500 | I111: 1479 | M111: 1200
B112: Totaal per jaar | D112: € | G112: 9216.255 | I112: 12850.419 | K112: 0 | M112: 6609.4998 | O112: 0 | Q112: 0
C113: Oppervalk without buffer
B114: Piek Zuivering behandeling | D114: m3/uur | E114: 12.58093971
B115: Total hergebruik | D115: m3 | E115: 14048
B116: Totale lozing | D116: m3 | E116: 400
B117: beste oplossing per bedrijf
B118: leverancier | E118: Waterson | G118: Agrozone | I118: Enthoven Techniek | K118: HortiMaX | M118: WaterIQ | O118: Priva | Q118: WaterQ
B119: techniek | E119: H2O2 + UV | G119: Ozone | I119: H2O2 + UV | K119: H2O2 + UV | M119: H2O2+ozon+ katalysator | O119: H2O2 + UV | Q119: H2O2 + UV
B120: Zuivering capaciteit | D120: m3/uur | G120: Maatwerk nodig | I120: Maatwerk nodig | K120: Maatwerk nodig | M120: 20 | O120: Maatwerk nodig | Q120: Maatwerk nodig
B121: Ontsmetting capaciteit | M121: n.v.t.
B122: Nodige zuivering buffer | D122: m3 | E122: 200 | G122: bij deze | I122: bij deze | K122: bij deze | M122: 0 | O122: bij deze | Q122: bij deze
B123: Nodige ontsmetting buffer | M123: n.v.t.
B124: Eenmalige prijs te betalen | D124: k€ | G124: leverancier | I124: leverancier | K124: leverancier | M124: 179 | O124: leverancier | Q124: leverancier
B125: jaarlijkse kosten
B126: Afschrijving | D126: € | M126: 17900
B127: Rente | D127: € | M127: 1611
B128: Elektriciteit | D128: € | E128: 107 | M128: 64.2
B129: Producten | D129: € | M129: 336
B130: Onderhoud | D130: € | M130: 3500
B131: Totaal per jaar | D131: € | E131: 4283 | G131: 0 | I131: 0 | K131: 0 | M131: 23411.2 | O131: 0 | Q131: 0
C132: oppervalk 4 with buffer
B133: Piek Zuivering behandeling | D133: m3/uur | E133: 12.58093971
B134: Total hergebruik | D134: m3 | E134: 14048
B135: Totale lozing | D135: m3 | E135: 400
B136: beste oplossing per bedrijf
B137: leverancier | E137: Waterson | G137: Agrozone | I137: Enthoven Techniek | K137: HortiMaX | M137: WaterIQ | O137: Priva | Q137: WaterQ
B138: techniek | E138: H2O2 + UV | G138: Ozone | I138: H2O2 + UV | K138: H2O2 + UV | M138: H2O2+ozon+ katalysator | O138: H2O2 + UV | Q138: H2O2 + UV
B139: Zuivering capaciteit | D139: m3/uur | G139: 0.7 | I139: 0.53 | K139: 0.4 | M139: 0.48 | O139: 0.75 | Q139: 0.75
B140: Ontsmetting capaciteit | G140: n.v.t. | I140: n.v.t. | K140: n.v.t. | M140: n.v.t. | O140: n.v.t. | Q140: n.v.t.
B141: Nodige zuivering buffer | D141: m3 | E141: 200 | G141: 0 | I141: 0 | K141: 25 | M141: 25 | O141: 0 | Q141: 0
B142: Nodige ontsmetting buffer | G142: n.v.t. | I142: n.v.t. | K142: n.v.t. | M142: n.v.t. | O142: n.v.t. | Q142: n.v.t.
B143: Eenmalige prijs te betalen | D143: k€ | G143: 25.995 | I143: 17.9 | K143: 17.65 | M143: 22.9 | O143: 17 | Q143: 19.725
B144: jaarlijkse kosten
B145: Afschrijving | D145: € | G145: 2599.5 | I145: 1790 | K145: 1765 | M145: 2290 | O145: 1700 | Q145: 1972.5
B146: Rente | D146: € | G146: 233.955 | I146: 161.1 | K146: 158.85 | M146: 206.1 | O146: 153 | Q146: 177.525
B147: Elektriciteit | D147: € | E147: 107 | G147: 1082.84 | I147: 1198.4 | K147: 1326.8 | M147: 299.6 | O147: 1540.8 | Q147: 642
B148: Producten | D148: € | G148: 0 | I148: 24 | K148: 116 | M148: 336 | O148: 160 | Q148: 52
B149: Onderhoud | D149: € | G149: 1050 | I149: 1190 | K149: 200 | M149: 1000 | O149: 60 | Q149: 1308
B150: Totaal per jaar | D150: € | E150: 4283 | G150: 4966.295 | I150: 4363.5 | K150: 3566.65 | M150: 4131.7 | O150: 3613.8 | Q150: 4152.025
C151: Combinatie
B152: Piek Zuivering behandeling | D152: m3/uur | E152: 12.58093971
B153: Total hergebruik | D153: m3 | E153: 14048
B154: Totale lozing | D154: m3 | E154: 400
B155: beste oplossing per bedrijf
B156: leverancier | E156: Waterson | G156: Agrozone | I156: Enthoven Techniek | K156: HortiMaX | M156: WaterIQ | O156: Priva | Q156: WaterQ
B157: techniek | E157: H2O2 + UV | G157: Ozone | I157: H2O2 + UV | K157: H2O2 + UV | M157: H2O2+ozon+ katalysator | O157: H2O2 + UV | Q157: H2O2 + UV
B158: Zuivering capaciteit | D158: m3/uur | G158: 1.2 | I158: 3.5 | K158: Maatwerk nodig | M158: 1.5 | O158: Maatwerk nodig | Q158: Maatwerk nodig
B159: Ontsmetting capaciteit | G159: 4.8 | I159: 14.9 | M159: 4.5
B160: Nodige zuivering buffer | D160: m3 | E160: 200 | G160: 0 | I160: 0 | K160: bij deze | M160: 0 | O160: bij deze | Q160: bij deze
B161: Nodige ontsmetting buffer | G161: 0 | I161: 0 | M161: 0
B162: Eenmalige prijs te betalen | D162: k€ | G162: 45.235 | I162: 68.155 | K162: leverancier | M162: 59.405 | O162: leverancier | Q162: leverancier
B163: jaarlijkse kosten
B164: Afschrijving | D164: € | G164: 4523.5 | I164: 6815.5 | M164: 5940.5
B165: Rente | D165: € | G165: 407.115 | I165: 613.395 | M165: 534.645
B166: Elektriciteit | D166: € | E166: 107 | G166: 8371.68 | I166: 11549.152 | M166: 3520.8992
B167: Producten | D167: € | G167: 0 | I167: 866.88 | M167: 757.44
B168: Onderhoud | D168: € | G168: 1500 | I168: 2577 | M168: 1375
B169: Totaal per jaar | D169: € | G169: 14802.295 | I169: 22421.927 | K169: 0 | M169: 12128.4842 | O169: 0 | Q169: 0
C170: test 4 with buffer
B171: Piek Zuivering behandeling | D171: m3/uur | E171: 25.04046986
B172: Total hergebruik | D172: m3 | E172: 7020
B173: Totale lozing | D173: m3 | E173: 232
B174: beste oplossing per bedrijf
B175: leverancier | E175: Waterson | G175: Agrozone | I175: Enthoven Techniek | K175: HortiMaX | M175: WaterIQ | O175: Priva | Q175: WaterQ
B176: techniek | E176: H2O2 + UV | G176: Ozone | I176: H2O2 + UV | K176: H2O2 + UV | M176: H2O2+ozon+ katalysator | O176: H2O2 + UV | Q176: H2O2 + UV
B177: Zuivering capaciteit | D177: m3/uur | G177: 0.7 | I177: 0.53 | K177: 0.4 | M177: 0.48 | O177: 1.25 | Q177: 0.75
B178: Ontsmetting capaciteit | G178: n.v.t. | I178: n.v.t. | K178: n.v.t. | M178: n.v.t. | O178: n.v.t. | Q178: n.v.t.
B179: Nodige zuivering buffer | D179: m3 | E179: 150 | G179: 51 | I179: 51 | K179: 51 | M179: 51 | O179: 0 | Q179: 51
B180: Nodige ontsmetting buffer | G180: n.v.t. | I180: n.v.t. | K180: n.v.t. | M180: n.v.t. | O180: n.v.t. | Q180: n.v.t.
B181: Eenmalige prijs te betalen | D181: k€ | G181: 30.674 | I181: 22.579 | K181: 18.929 | M181: 24.179 | Q181: 24.404
B182: jaarlijkse kosten
B183: Afschrijving | D183: € | G183: 3067.4 | I183: 2257.9 | K183: 1892.9 | M183: 2417.9 | O183: - | Q183: 2440.4
B184: Rente | D184: € | G184: 276.066 | I184: 203.211 | K184: 170.361 | M184: 217.611 | O184: 0 | Q184: 219.636
B185: Elektriciteit | D185: € | E185: 62.06 | G185: 628.0472 | I185: 695.072 | K185: 769.544 | M185: 173.768 | O185: 2532.048 | Q185: 372.36
B186: Producten | D186: € | G186: 0 | I186: 13.92 | K186: 67.28 | M186: 194.88 | O186: 41.76 | Q186: 30.16
B187: Onderhoud | D187: € | G187: 1050 | I187: 1190 | K187: 200 | M187: 1000 | O187: 51.04 | Q187: 1308
B188: Totaal per jaar | D188: € | E188: 3273.96 | G188: 5021.5132 | I188: 4360.103 | K188: 3100.085 | M188: 4004.159 | O188: 2624.848 | Q188: 4370.556
C189: Test 4 Combi
B190: Piek Zuivering behandeling | D190: m3/uur | E190: 25.04046986
B191: Total hergebruik | D191: m3 | E191: 7020
B192: Totale lozing | D192: m3 | E192: 232
B193: beste oplossing per bedrijf
B194: leverancier | E194: Waterson | G194: Agrozone | I194: Enthoven Techniek | K194: HortiMaX | M194: WaterIQ | O194: Priva | Q194: WaterQ
B195: techniek | E195: H2O2 + UV | G195: Ozone | I195: H2O2 + UV | K195: H2O2 + UV | M195: H2O2+ozon+ katalysator | O195: H2O2 + UV | Q195: H2O2 + UV
B196: Zuivering capaciteit | D196: m3/uur | G196: 1.2 | I196: 1.05 | K196: Maatwerk nodig | M196: 0.6 | O196: Maatwerk nodig | Q196: Maatwerk nodig
B197: Ontsmetting capaciteit | G197: 4.8 | I197: 4.5 | M197: 2.5
B198: Nodige zuivering buffer | D198: m3 | G198: 0 | I198: 0 | K198: bij deze | M198: 51 | O198: bij deze | Q198: bij deze
B199: Nodige ontsmetting buffer | G199: 0 | I199: 0 | M199: 0
B200: Eenmalige prijs te betalen | D200: k€ | G200: 37.7935 | I200: 33.2135 | K200: leverancier | M200: 31.0925 | O200: leverancier | Q200: leverancier
B201: jaarlijkse kosten
... 82 more rows
